Workbook

Sheet Accueil

Sheet Statistiques
B4: Nombre de livraisons | C4: NBR
B5: Livraisons | C5: =SUM(Tableau1[NBR de liv.]) -> 1186
B7: Sem travaillées | C7: ST
B8: Sem travaillées | C8: =Tableau2549[JT]/5 -> 29.2
B10: Jours travaillées | C10: JT
B11: Jours travaillées | C11: =SUM(Tableau1[Jours travaillées]) -> 146
B13: Heures travaillées | C13: hrest
B14: Heures travaillées | C14: =SUM(BD!E:E) -> 42.71319444
B16: Kilomètres | C16: KM
B17: SOS | C17: =SUM(Tableau1[KM SOS]) -> 32268.1
B18: Denis | C18: =SUM(Tableau1[KM Réel]) -> 28103.6
B20: Revenus de livraisons | C20: $
B21: Revenus | C21: =SUM(Tableau1[Revenus des liv.]) -> 14932.36
B23: Essence SOS | C23: $
B24: Essence | C24: =SUM(Tableau1[Essence SOS]) -> 4071.83
B26: Ajustements salariale | C26: $
B27: Ajustements | C27: =SUM(Tableau1[Ajustements salariales]) -> -77.15

Sheet TB
CI2: Revenus moyen / sem
CI3: 510.6625
CI5: Revenus moyen / jour
CI6: 102.1325
CI9: Taux horaire
CI10: 13.74236591
CJ13: Revenus / Jours
CJ14: janvier | DC14: février
CJ15: 2025-01-06 | CK15: 2025-01-07 | CL15: 2025-01-08 | CM15: 2025-01-09 | CN15: 2025-01-10 | CO15: 2025-01-13 | CP15: 2025-01-14 | CQ15: 2025-01-15 | CR15: 2025-01-16 | CS15: 2025-01-17 | CT15: 2025-01-20 | CU15: 2025-01-21 | CV15: 2025-01-22 | CW15: 2025-01-23 | CX15: 2025-01-27 | CY15: 2025-01-28 | CZ15: 2025-01-29 | DA15: 2025-01-30 | DB15: 2025-01-31 | DC15: 2025-02-03 | DD15: 2025-02-04 | DE15: 2025-02-05 | DF15: 2025-02-06 | DG15: 2025-02-10 | DH15: 2025-02-11 | DI15: 2025-02-12 | DJ15: 2025-02-13 | DK15: 2025-02-24 | DL15: 2025-02-17 | DM15: 2025-02-18 | DN15: 2025-02-19 | DO15: 2025-02-20 | DP15: 2025-02-25 | DQ15: 2025-02-26 | DR15: 2025-02-27 | DS15: 2025-02-28
CI16: Revenus | CJ16: 131.49 | CK16: 52.67 | CL16: 62.42 | CM16: 87.99 | CN16: 77.77 | CO16: 124.8 | CP16: 74.42 | CQ16: 53.74 | CR16: 137.59 | CS16: 100.62 | CT16: 132.15 | CU16: 73.71 | CV16: 145.48 | CW16: 35.86 | CX16: 338.1 | CY16: 93.93 | CZ16: 67.79 | DA16: 109.7 | DB16: 49.79 | DC16: 76.51 | DD16: 68.99 | DE16: 107.13 | DF16: 93.67 | DG16: 156.97 | DH16: 112.69 | DI16: 88.6 | DJ16: 157.53 | DK16: 206.74 | DL16: 60.23 | DM16: 73.42 | DN16: 75.93 | DO16: 164.47 | DP16: 76.89 | DQ16: 107.83 | DR16: 47.65 | DS16: 51.5
CI19: =CJ13 -> Revenus / Jours
CI20: Jours | CJ20: =IF(CJ15="","",(CJ15)) -> 2025-01-06 | CK20: =IF(CK15="","",(CK15)) -> 2025-01-07 | CL20: 2025-01-08 | CM20: 2025-01-09 | CN20: 2025-01-10 | CO20: 2025-01-13 | CP20: 2025-01-14 | CQ20: 2025-01-15 | CR20: 2025-01-16 | CS20: 2025-01-17 | CT20: 2025-01-20 | CU20: 2025-01-21 | CV20: 2025-01-22 | CW20: 2025-01-23 | CX20: 2025-01-27 | CY20: 2025-01-28 | CZ20: 2025-01-29 | DA20: 2025-01-30 | DB20: 2025-01-31 | DC20: 2025-02-03 | DD20: 2025-02-04 | DE20: 2025-02-05 | DF20: 2025-02-06 | DG20: 2025-02-10 | DH20: 2025-02-11 | DI20: 2025-02-12 | DJ20: 2025-02-13 | DK20: 2025-02-24 | DL20: 2025-02-17 | DM20: 2025-02-18 | DN20: 2025-02-19 | DO20: 2025-02-20 | DP20: 2025-02-25 | DQ20: 2025-02-26 | DR20: 2025-02-27 | DS20: 2025-02-28 | EW20: =IF(EW15="","",(EW15)) ->  | HG20: =IF(HG15="","",(HG15)) ->  | IQ20: =IF(IQ15="","",(IQ15)) -> 
CI21: =CI16 -> Revenus | CJ21: =IF(CJ16="","",(CJ16)) -> 131.49 | CK21: =IF(CK16="","",(CK16)) -> 52.67 | CL21: 62.42 | CM21: 87.99 | CN21: 77.77 | CO21: 124.8 | CP21: 74.42 | CQ21: 53.74 | CR21: 137.59 | CS21: 100.62 | CT21: 132.15 | CU21: 73.71 | CV21: 145.48 | CW21: 35.86 | CX21: 338.1 | CY21: 93.93 | CZ21: 67.79 | DA21: 109.7 | DB21: 49.79 | DC21: 76.51 | DD21: 68.99 | DE21: 107.13 | DF21: 93.67 | DG21: 156.97 | DH21: 112.69 | DI21: 88.6 | DJ21: 157.53 | DK21: 206.74 | DL21: 60.23 | DM21: 73.42 | DN21: 75.93 | DO21: 164.47 | DP21: 76.89 | DQ21: 107.83 | DR21: 47.65 | DS21: 51.5 | EW21: =IF(EW16="","",(EW16)) ->  | HG21: =IF(HG16="","",(HG16)) ->  | IQ21: =IF(IQ16="","",(IQ16)) -> 
CJ32: Revenus / Mois
CJ33: janvier | CK33: février
CI34: Revenus | CJ34: 1950.02 | CK34: 1726.75
CI37: =CJ32 -> Revenus / Mois | CJ37: janvier | CK37: février | CL37: mars | CM37: avril | CN37: mai | CO37: juin | CP37: juillet | CQ37: août | CR37: septembre | CS37: octobre | CT37: novembre | CU37: décembre
CI38: Revenus de liv. | CJ38: =CJ34 -> 1950.02 | CK38: =CK34 -> 1726.75 | CL38: 0 | CM38: 0 | CN38: 0 | CO38: 0 | CP38: 0 | CQ38: 0 | CR38: 0 | CS38: 0 | CT38: 0 | CU38: 0
CK60: Jours
CK61: 2025-01-06 | CL61: 2025-01-07 | CM61: 2025-01-08 | CN61: 2025-01-09 | CO61: 2025-01-10 | CP61: 2025-01-13 | CQ61: 2025-01-14 | CR61: 2025-01-15 | CS61: 2025-01-16 | CT61: 2025-01-17 | CU61: 2025-01-20 | CV61: 2025-01-21 | CW61: 2025-01-22 | CX61: 2025-01-23 | CY61: 2025-01-27 | CZ61: 2025-01-28 | DA61: 2025-01-29 | DB61: 2025-01-30 | DC61: 2025-01-31 | DD61: 2025-02-03 | DE61: 2025-02-04 | DF61: 2025-02-05 | DG61: 2025-02-06 | DH61: 2025-02-10 | DI61: 2025-02-11 | DJ61: 2025-02-12 | DK61: 2025-02-13 | DL61: 2025-02-17 | DM61: 2025-02-18 | DN61: 2025-02-19 | DO61: 2025-02-20 | DP61: 2025-02-24 | DQ61: 2025-02-25 | DR61: 2025-02-26 | DS61: 2025-02-27 | DT61: 2025-02-28
CK62: 1 | CL62: 1 | CM62: 1 | CN62: 1 | CO62: 1 | CP62: 1 | CQ62: 1 | CR62: 1 | CS62: 1 | CT62: 1 | CU62: 1 | CV62: 1 | CW62: 1 | CX62: 1 | CY62: 1 | CZ62: 1 | DA62: 1 | DB62: 1 | DC62: 1 | DD62: 1 | DE62: 1 | DF62: 1 | DG62: 1 | DH62: 1 | DI62: 1 | DJ62: 1 | DK62: 1 | DL62: 1 | DM62: 1 | DN62: 1 | DO62: 1 | DP62: 1 | DQ62: 1 | DR62: 1 | DS62: 1 | DT62: 1
CJ63: Somme de Revenus des liv. | CK63: 131.49 | CL63: 52.67 | CM63: 62.42 | CN63: 87.99 | CO63: 77.77 | CP63: 124.8 | CQ63: 74.42 | CR63: 53.74 | CS63: 137.59 | CT63: 100.62 | CU63: 132.15 | CV63: 73.71 | CW63: 145.48 | CX63: 35.86 | CY63: 338.1 | CZ63: 93.93 | DA63: 67.79 | DB63: 109.7 | DC63: 49.79 | DD63: 76.51 | DE63: 68.99 | DF63: 107.13 | DG63: 93.67 | DH63: 156.97 | DI63: 112.69 | DJ63: 88.6 | DK63: 157.53 | DL63: 60.23 | DM63: 73.42 | DN63: 75.93 | DO63: 164.47 | DP63: 206.74 | DQ63: 76.89 | DR63: 107.83 | DS63: 47.65 | DT63: 51.5
CJ65: =CK60 -> Jours | CK65: =CK61 -> 2025-01-06 | CL65: =CL61 -> 2025-01-07 | CM65: 2025-01-08 | CN65: 2025-01-09 | CO65: 2025-01-10 | CP65: 2025-01-13 | CQ65: 2025-01-14 | CR65: 2025-01-15 | CS65: 2025-01-16 | CT65: 2025-01-17 | CU65: 2025-01-20 | CV65: 2025-01-21 | CW65: 2025-01-22 | CX65: 2025-01-23 | CY65: 2025-01-27 | CZ65: 2025-01-28 | DA65: 2025-01-29 | DB65: 2025-01-30 | DC65: 2025-01-31 | DD65: 2025-02-03 | DE65: 2025-02-04 | DF65: 2025-02-05 | DG65: 2025-02-06 | DH65: 2025-02-10 | DI65: 2025-02-11 | DJ65: 2025-02-12 | DK65: 2025-02-13 | DL65: 2025-02-17 | DM65: 2025-02-18 | DN65: 2025-02-19 | DO65: 2025-02-20 | DP65: 2025-02-24 | DQ65: 2025-02-25 | DR65: 2025-02-26 | DS65: 2025-02-27 | DT65: 2025-02-28
CJ66: Jours travaillées | CK66: =CK62 -> 1 | CL66: =CL62 -> 1 | CM66: 1 | CN66: 1 | CO66: 1 | CP66: 1 | CQ66: 1 | CR66: 1 | CS66: 1 | CT66: 1 | CU66: 1 | CV66: 1 | CW66: 1 | CX66: 1 | CY66: 1 | CZ66: 1 | DA66: 1 | DB66: 1 | DC66: 1 | DD66: 1 | DE66: 1 | DF66: 1 | DG66: 1 | DH66: 1 | DI66: 1 | DJ66: 1 | DK66: 1 | DL66: 1 | DM66: 1 | DN66: 1 | DO66: 1 | DP66: 1 | DQ66: 1 | DR66: 1 | DS66: 1 | DT66: 1
CJ67: =CJ63 -> Somme de Revenus des liv. | CK67: =CK63 -> 131.49 | CL67: 52.67 | CM67: 62.42 | CN67: 87.99 | CO67: 77.77 | CP67: 124.8 | CQ67: 74.42 | CR67: 53.74 | CS67: 137.59 | CT67: 100.62 | CU67: 132.15 | CV67: 73.71 | CW67: 145.48 | CX67: 35.86 | CY67: 338.1 | CZ67: 93.93 | DA67: 67.79 | DB67: 109.7 | DC67: 49.79 | DD67: 76.51 | DE67: 68.99 | DF67: 107.13 | DG67: 93.67 | DH67: 156.97 | DI67: 112.69 | DJ67: 88.6 | DK67: 157.53 | DL67: 60.23 | DM67: 73.42 | DN67: 75.93 | DO67: 164.47 | DP67: 206.74 | DQ67: 76.89 | DR67: 107.83 | DS67: 47.65 | DT67: 51.5

Sheet BD
B6: ID | C6: Date | D6: Jours travaillées | E6: Heures travaillées | F6: Heures en décimal | G6: NBR de liv. | H6: KM SOS | I6: KM Réel | J6: Revenus des liv. | K6: Essence SOS | L6: Ajustements salariales | M6: Commentaires | N6: Année | O6: mois | P6: jour | Q6: Recherche | V6: Recherche | Y6: ID | Z6: Date | AA6: Jours travaillées | AB6: Heures travaillées | AC6: NBR de liv. | AD6: KM SOS | AE6: KM Réel | AF6: Revenus des liv. | AG6: Essence SOS | AH6: Ajustements salariales | AI6: Commentaires | AJ6: Année | AK6: mois | AL6: jour | AM6: Recherche
B7: =ROW(B7)-6 -> 1 | C7: 2024-06-12 | D7: 1 | E7: 03:30:00 | F7: =IF(E7="","",(E7/"1:00")) -> 3.5 | G7: 5 | H7: 296.6 | I7: 244 | J7: 128.42 | K7: 41.07 | L7: 0 | N7: =YEAR(Tableau1[[#This Row],[Date]]) -> 2024 | O7: =TEXT(Tableau1[[#This Row],[Date]],"mmmm") -> juin | P7: =DAY(Tableau1[[#This Row],[Date]]) -> 12 | Q7: =CONCATENATE(TEXT(Tableau1[[#This Row],[Date]],"aaaa-mm-jj"),"",Tableau1[[#This Row],[Jours travaillées]],"",Tableau1[[#This Row],[NBR de liv.]],"",Tableau1[[#This Row],[KM SOS]],"",Tableau1[[#This Row],[KM Réel]],"",Tableau1[[#This Row],[Revenus des liv.]],"",Tableau1[[#This Row],[Essence SOS]],"",Tableau1[[#This Row],[Ajustements salariales]],"",Tableau1[[#This Row],[Commentaires]],"",Tableau1[[#This Row],[Année]],"",Tableau1[[#This Row],[mois]]) -> 2024-06-1215296,6244128,4241,0702024juin | V7: ** | Y7: 1 | Z7: 2024-06-12 | AA7: 0.5 | AB7: 03:30:00 | AC7: 5 | AD7: 296.6 | AE7: 244 | AF7: 128.42 | AG7: 41.07 | AH7: 0 | AJ7: 2024 | AK7: juin | AL7: 12 | AM7: 2024-06-120,55296,6244128,4241,0702024juin
B8: =ROW(B8)-6 -> 2 | C8: 2024-06-13 | D8: 1 | E8: 07:00:00 | F8: =IF(E8="","",(E8/"1:00")) -> 7 | G8: 7 | H8: 396.4 | I8: 326.2 | J8: 191.44 | K8: 54.89 | L8: 0 | N8: =YEAR(Tableau1[[#This Row],[Date]]) -> 2024 | O8: =TEXT(Tableau1[[#This Row],[Date]],"mmmm") -> juin | P8: =DAY(Tableau1[[#This Row],[Date]]) -> 13 | Q8: =CONCATENATE(TEXT(Tableau1[[#This Row],[Date]],"aaaa-mm-jj"),"",Tableau1[[#This Row],[Jours travaillées]],"",Tableau1[[#This Row],[NBR de liv.]],"",Tableau1[[#This Row],[KM SOS]],"",Tableau1[[#This Row],[KM Réel]],"",Tableau1[[#This Row],[Revenus des liv.]],"",Tableau1[[#This Row],[Essence SOS]],"",Tableau1[[#This Row],[Ajustements salariales]],"",Tableau1[[#This Row],[Commentaires]],"",Tableau1[[#This Row],[Année]],"",Tableau1[[#This Row],[mois]]) -> 2024-06-1317396,4326,2191,4454,8902024juin | Y8: 2 | Z8: 2024-06-13 | AA8: 1 | AB8: 07:00:00 | AC8: 7 | AD8: 396.4 | AE8: 326.2 | AF8: 191.44 | AG8: 54.89 | AH8: 0 | AJ8: 2024 | AK8: juin | AL8: 13 | AM8: 2024-06-1317396,4326,2191,4454,8902024juin
B9: 3 | C9: 2024-06-17 | D9: 1 | E9: 07:00:00 | F9: 7 | G9: 12 | H9: 109.3 | I9: 121 | J9: 147.89 | K9: 9.83 | L9: 0 | N9: =YEAR(Tableau1[[#This Row],[Date]]) -> 2024 | O9: =TEXT(Tableau1[[#This Row],[Date]],"mmmm") -> juin | P9: =DAY(Tableau1[[#This Row],[Date]]) -> 17 | Q9: =CONCATENATE(TEXT(Tableau1[[#This Row],[Date]],"aaaa-mm-jj"),"",Tableau1[[#This Row],[Jours travaillées]],"",Tableau1[[#This Row],[NBR de liv.]],"",Tableau1[[#This Row],[KM SOS]],"",Tableau1[[#This Row],[KM Réel]],"",Tableau1[[#This Row],[Revenus des liv.]],"",Tableau1[[#This Row],[Essence SOS]],"",Tableau1[[#This Row],[Ajustements salariales]],"",Tableau1[[#This Row],[Commentaires]],"",Tableau1[[#This Row],[Année]],"",Tableau1[[#This Row],[mois]]) -> 2024-06-17112109,3121147,899,8302024juin | Y9: 3 | Z9: 2025-06-17 | AA9: 1 | AB9: 07:00:00 | AC9: 12 | AD9: 109.3 | AE9: 121 | AF9: 147.89 | AG9: 9.83 | AH9: 0 | AJ9: 2025 | AK9: juin | AL9: 17 | AM9: 2025-06-17112109,3121147,899,8302025juin
B10: 4 | C10: 2024-06-18 | D10: 1 | E10: 02:00:00 | F10: 2 | G10: 2 | H10: 135.1 | I10: 149.6 | J10: 23.9 | K10: 12.16 | L10: 0 | N10: =YEAR(Tableau1[[#This Row],[Date]]) -> 2024 | O10: =TEXT(Tableau1[[#This Row],[Date]],"mmmm") -> juin | P10: =DAY(Tableau1[[#This Row],[Date]]) -> 18 | Q10: =CONCATENATE(TEXT(Tableau1[[#This Row],[Date]],"aaaa-mm-jj"),"",Tableau1[[#This Row],[Jours travaillées]],"",Tableau1[[#This Row],[NBR de liv.]],"",Tableau1[[#This Row],[KM SOS]],"",Tableau1[[#This Row],[KM Réel]],"",Tableau1[[#This Row],[Revenus des liv.]],"",Tableau1[[#This Row],[Essence SOS]],"",Tableau1[[#This Row],[Ajustements salariales]],"",Tableau1[[#This Row],[Commentaires]],"",Tableau1[[#This Row],[Année]],"",Tableau1[[#This Row],[mois]]) -> 2024-06-1812135,1149,623,912,1602024juin | Y10: 4 | Z10: 2024-06-18 | AA10: 0.29 | AB10: 02:00:00 | AC10: 2 | AD10: 135.1 | AE10: 149.6 | AF10: 23.9 | AG10: 12.16 | AH10: 0 | AJ10: 2024 | AK10: juin | AL10: 18 | AM10: 2024-06-180,292135,1149,623,912,1602024juin
B11: 5 | C11: 2024-06-19 | D11: 1 | E11: 07:00:00 | F11: 7 | G11: 1 | H11: 525.5 | I11: 581.9 | J11: 48.5 | K11: 47.3 | L11: 0 | N11: =YEAR(Tableau1[[#This Row],[Date]]) -> 2024 | O11: =TEXT(Tableau1[[#This Row],[Date]],"mmmm") -> juin | P11: =DAY(Tableau1[[#This Row],[Date]]) -> 19 | Q11: =CONCATENATE(TEXT(Tableau1[[#This Row],[Date]],"aaaa-mm-jj"),"",Tableau1[[#This Row],[Jours travaillées]],"",Tableau1[[#This Row],[NBR de liv.]],"",Tableau1[[#This Row],[KM SOS]],"",Tableau1[[#This Row],[KM Réel]],"",Tableau1[[#This Row],[Revenus des liv.]],"",Tableau1[[#This Row],[Essence SOS]],"",Tableau1[[#This Row],[Ajustements salariales]],"",Tableau1[[#This Row],[Commentaires]],"",Tableau1[[#This Row],[Année]],"",Tableau1[[#This Row],[mois]]) -> 2024-06-1911525,5581,948,547,302024juin | Y11: 5 | Z11: 2024-06-10 | AA11: 0.14 | AB11: 01:00:00 | AC11: 1 | AD11: 525.5 | AE11: 581.9 | AF11: 48.5 | AG11: 47.3 | AH11: 0 | AJ11: 2024 | AK11: juin | AL11: 10 | AM11: 2024-06-100,141525,5581,948,547,302024juin
B12: 6 | C12: 2024-06-20 | D12: 1 | E12: 07:00:00 | F12: 7 | G12: 9 | H12: 316.1 | I12: 350 | J12: 333.61 | K12: 28.45 | L12: 0 | N12: =YEAR(Tableau1[[#This Row],[Date]]) -> 2024 | O12: =TEXT(Tableau1[[#This Row],[Date]],"mmmm") -> juin | P12: =DAY(Tableau1[[#This Row],[Date]]) -> 20 | Q12: =CONCATENATE(TEXT(Tableau1[[#This Row],[Date]],"aaaa-mm-jj"),"",Tableau1[[#This Row],[Jours travaillées]],"",Tableau1[[#This Row],[NBR de liv.]],"",Tableau1[[#This Row],[KM SOS]],"",Tableau1[[#This Row],[KM Réel]],"",Tableau1[[#This Row],[Revenus des liv.]],"",Tableau1[[#This Row],[Essence SOS]],"",Tableau1[[#This Row],[Ajustements salariales]],"",Tableau1[[#This Row],[Commentaires]],"",Tableau1[[#This Row],[Année]],"",Tableau1[[#This Row],[mois]]) -> 2024-06-2019316,1350333,6128,4502024juin | Y12: 6 | Z12: 2024-06-20 | AA12: 1 | AB12: 07:00:00 | AC12: 9 | AD12: 316.1 | AE12: 350 | AF12: 333.61 | AG12: 28.45 | AH12: 0 | AJ12: 2024 | AK12: juin | AL12: 20 | AM12: 2024-06-2019316,1350333,6128,4502024juin
B13: 7 | C13: 2024-06-24 | D13: 1 | E13: 07:00:00 | F13: 7 | G13: 6 | H13: 215.4 | I13: 224.3 | J13: 83.08 | K13: 8.19 | L13: 0 | N13: =YEAR(Tableau1[[#This Row],[Date]]) -> 2024 | O13: =TEXT(Tableau1[[#This Row],[Date]],"mmmm") -> juin | P13: =DAY(Tableau1[[#This Row],[Date]]) -> 24 | Q13: =CONCATENATE(TEXT(Tableau1[[#This Row],[Date]],"aaaa-mm-jj"),"",Tableau1[[#This Row],[Jours travaillées]],"",Tableau1[[#This Row],[NBR de liv.]],"",Tableau1[[#This Row],[KM SOS]],"",Tableau1[[#This Row],[KM Réel]],"",Tableau1[[#This Row],[Revenus des liv.]],"",Tableau1[[#This Row],[Essence SOS]],"",Tableau1[[#This Row],[Ajustements salariales]],"",Tableau1[[#This Row],[Commentaires]],"",Tableau1[[#This Row],[Année]],"",Tableau1[[#This Row],[mois]]) -> 2024-06-2416215,4224,383,088,1902024juin | Y13: 7 | Z13: 2024-06-24 | AA13: 1 | AB13: 07:00:00 | AC13: 6 | AD13: 215.4 | AE13: 224.3 | AF13: 83.08 | AG13: 8.19 | AH13: 0 | AJ13: 2024 | AK13: juin | AL13: 24 | AM13: 2024-06-2416215,4224,383,088,1902024juin
B14: 8 | C14: 2024-06-25 | D14: 1 | E14: 07:00:00 | F14: 7 | G14: 7 | H14: 212.1 | I14: 221.1 | J14: 101.86 | K14: 10.13 | L14: 0 | N14: =YEAR(Tableau1[[#This Row],[Date]]) -> 2024 | O14: =TEXT(Tableau1[[#This Row],[Date]],"mmmm") -> juin | P14: =DAY(Tableau1[[#This Row],[Date]]) -> 25 | Q14: =CONCATENATE(TEXT(Tableau1[[#This Row],[Date]],"aaaa-mm-jj"),"",Tableau1[[#This Row],[Jours travaillées]],"",Tableau1[[#This Row],[NBR de liv.]],"",Tableau1[[#This Row],[KM SOS]],"",Tableau1[[#This Row],[KM Réel]],"",Tableau1[[#This Row],[Revenus des liv.]],"",Tableau1[[#This Row],[Essence SOS]],"",Tableau1[[#This Row],[Ajustements salariales]],"",Tableau1[[#This Row],[Commentaires]],"",Tableau1[[#This Row],[Année]],"",Tableau1[[#This Row],[mois]]) -> 2024-06-2517212,1221,1101,8610,1302024juin | Y14: 8 | Z14: 2024-06-25 | AA14: 1 | AB14: 07:00:00 | AC14: 7 | AD14: 212.1 | AE14: 221.1 | AF14: 101.86 | AG14: 10.13 | AH14: 0 | AJ14: 2024 | AK14: juin | AL14: 25 | AM14: 2024-06-2517212,1221,1101,8610,1302024juin
B15: =ROW(B15)-6 -> 9 | C15: 2024-06-26 | D15: 1 | E15: 07:00:00 | F15: 7 | G15: 6 | H15: 160.3 | I15: 166.9 | J15: 86.52 | K15: 39.4 | L15: 0 | N15: =YEAR(Tableau1[[#This Row],[Date]]) -> 2024 | O15: =TEXT(Tableau1[[#This Row],[Date]],"mmmm") -> juin | P15: =DAY(Tableau1[[#This Row],[Date]]) -> 26 | Q15: =CONCATENATE(TEXT(Tableau1[[#This Row],[Date]],"aaaa-mm-jj"),"",Tableau1[[#This Row],[Jours travaillées]],"",Tableau1[[#This Row],[NBR de liv.]],"",Tableau1[[#This Row],[KM SOS]],"",Tableau1[[#This Row],[KM Réel]],"",Tableau1[[#This Row],[Revenus des liv.]],"",Tableau1[[#This Row],[Essence SOS]],"",Tableau1[[#This Row],[Ajustements salariales]],"",Tableau1[[#This Row],[Commentaires]],"",Tableau1[[#This Row],[Année]],"",Tableau1[[#This Row],[mois]]) -> 2024-06-2616160,3166,986,5239,402024juin
B16: 10 | C16: 2024-07-02 | D16: 1 | E16: 07:00:00 | F16: 7 | G16: 7 | H16: 282.8 | I16: 268.8 | J16: 77.72 | K16: 39.14 | L16: 0 | N16: =YEAR(Tableau1[[#This Row],[Date]]) -> 2024 | O16: =TEXT(Tableau1[[#This Row],[Date]],"mmmm") -> juillet | P16: =DAY(Tableau1[[#This Row],[Date]]) -> 2 | Q16: =CONCATENATE(TEXT(Tableau1[[#This Row],[Date]],"aaaa-mm-jj"),"",Tableau1[[#This Row],[Jours travaillées]],"",Tableau1[[#This Row],[NBR de liv.]],"",Tableau1[[#This Row],[KM SOS]],"",Tableau1[[#This Row],[KM Réel]],"",Tableau1[[#This Row],[Revenus des liv.]],"",Tableau1[[#This Row],[Essence SOS]],"",Tableau1[[#This Row],[Ajustements salariales]],"",Tableau1[[#This Row],[Commentaires]],"",Tableau1[[#This Row],[Année]],"",Tableau1[[#This Row],[mois]]) -> 2024-07-0217282,8268,877,7239,1402024juillet
B17: 11 | C17: 2024-07-03 | D17: 1 | E17: 07:00:00 | F17: 7 | G17: 14 | H17: 218 | I17: 206.8 | J17: 154.42 | K17: 30.18 | L17: 0 | N17: =YEAR(Tableau1[[#This Row],[Date]]) -> 2024 | O17: =TEXT(Tableau1[[#This Row],[Date]],"mmmm") -> juillet | P17: =DAY(Tableau1[[#This Row],[Date]]) -> 3 | Q17: =CONCATENATE(TEXT(Tableau1[[#This Row],[Date]],"aaaa-mm-jj"),"",Tableau1[[#This Row],[Jours travaillées]],"",Tableau1[[#This Row],[NBR de liv.]],"",Tableau1[[#This Row],[KM SOS]],"",Tableau1[[#This Row],[KM Réel]],"",Tableau1[[#This Row],[Revenus des liv.]],"",Tableau1[[#This Row],[Essence SOS]],"",Tableau1[[#This Row],[Ajustements salariales]],"",Tableau1[[#This Row],[Commentaires]],"",Tableau1[[#This Row],[Année]],"",Tableau1[[#This Row],[mois]]) -> 2024-07-03114218206,8154,4230,1802024juillet
B18: 12 | C18: 2024-07-04 | D18: 1 | E18: 07:00:00 | F18: 7 | G18: 8 | H18: 166.2 | I18: 157.6 | J18: 75.51 | K18: 23 | L18: 0 | N18: =YEAR(Tableau1[[#This Row],[Date]]) -> 2024 | O18: =TEXT(Tableau1[[#This Row],[Date]],"mmmm") -> juillet | P18: =DAY(Tableau1[[#This Row],[Date]]) -> 4 | Q18: =CONCATENATE(TEXT(Tableau1[[#This Row],[Date]],"aaaa-mm-jj"),"",Tableau1[[#This Row],[Jours travaillées]],"",Tableau1[[#This Row],[NBR de liv.]],"",Tableau1[[#This Row],[KM SOS]],"",Tableau1[[#This Row],[KM Réel]],"",Tableau1[[#This Row],[Revenus des liv.]],"",Tableau1[[#This Row],[Essence SOS]],"",Tableau1[[#This Row],[Ajustements salariales]],"",Tableau1[[#This Row],[Commentaires]],"",Tableau1[[#This Row],[Année]],"",Tableau1[[#This Row],[mois]]) -> 2024-07-0418166,2157,675,512302024juillet
B19: 13 | C19: 2024-07-08 | D19: 1 | E19: 07:00:00 | F19: 7 | G19: 7 | H19: 285.2 | I19: 225.2 | J19: 129.57 | K19: 34.19 | L19: 0 | N19: =YEAR(Tableau1[[#This Row],[Date]]) -> 2024 | O19: =TEXT(Tableau1[[#This Row],[Date]],"mmmm") -> juillet | P19: =DAY(Tableau1[[#This Row],[Date]]) -> 8 | Q19: =CONCATENATE(TEXT(Tableau1[[#This Row],[Date]],"aaaa-mm-jj"),"",Tableau1[[#This Row],[Jours travaillées]],"",Tableau1[[#This Row],[NBR de liv.]],"",Tableau1[[#This Row],[KM SOS]],"",Tableau1[[#This Row],[KM Réel]],"",Tableau1[[#This Row],[Revenus des liv.]],"",Tableau1[[#This Row],[Essence SOS]],"",Tableau1[[#This Row],[Ajustements salariales]],"",Tableau1[[#This Row],[Commentaires]],"",Tableau1[[#This Row],[Année]],"",Tableau1[[#This Row],[mois]]) -> 2024-07-0817285,2225,2129,5734,1902024juillet
B20: 14 | C20: 2024-07-09 | D20: 1 | E20: 07:00:00 | F20: 7 | G20: 8 | H20: 192.9 | I20: 152.3 | J20: 96.42 | K20: 23.12 | L20: 0 | N20: =YEAR(Tableau1[[#This Row],[Date]]) -> 2024 | O20: =TEXT(Tableau1[[#This Row],[Date]],"mmmm") -> juillet | P20: =DAY(Tableau1[[#This Row],[Date]]) -> 9 | Q20: =CONCATENATE(TEXT(Tableau1[[#This Row],[Date]],"aaaa-mm-jj"),"",Tableau1[[#This Row],[Jours travaillées]],"",Tableau1[[#This Row],[NBR de liv.]],"",Tableau1[[#This Row],[KM SOS]],"",Tableau1[[#This Row],[KM Réel]],"",Tableau1[[#This Row],[Revenus des liv.]],"",Tableau1[[#This Row],[Essence SOS]],"",Tableau1[[#This Row],[Ajustements salariales]],"",Tableau1[[#This Row],[Commentaires]],"",Tableau1[[#This Row],[Année]],"",Tableau1[[#This Row],[mois]]) -> 2024-07-0918192,9152,396,4223,1202024juillet
B21: 15 | C21: 2024-07-10 | D21: 1 | E21: 02:00:00 | F21: 2 | G21: 2 | H21: 91.6 | I21: 72.3 | J21: 19.84 | K21: 10.98 | L21: 0 | N21: =YEAR(Tableau1[[#This Row],[Date]]) -> 2024 | O21: =TEXT(Tableau1[[#This Row],[Date]],"mmmm") -> juillet | P21: =DAY(Tableau1[[#This Row],[Date]]) -> 10 | Q21: =CONCATENATE(TEXT(Tableau1[[#This Row],[Date]],"aaaa-mm-jj"),"",Tableau1[[#This Row],[Jours travaillées]],"",Tableau1[[#This Row],[NBR de liv.]],"",Tableau1[[#This Row],[KM SOS]],"",Tableau1[[#This Row],[KM Réel]],"",Tableau1[[#This Row],[Revenus des liv.]],"",Tableau1[[#This Row],[Essence SOS]],"",Tableau1[[#This Row],[Ajustements salariales]],"",Tableau1[[#This Row],[Commentaires]],"",Tableau1[[#This Row],[Année]],"",Tableau1[[#This Row],[mois]]) -> 2024-07-101291,672,319,8410,9802024juillet
B22: 16 | C22: 2024-07-11 | D22: 1 | E22: 07:00:00 | F22: 7 | G22: 11 | H22: 198.4 | I22: 156.7 | J22: 123.14 | K22: 23.79 | L22: 0 | N22: =YEAR(Tableau1[[#This Row],[Date]]) -> 2024 | O22: =TEXT(Tableau1[[#This Row],[Date]],"mmmm") -> juillet | P22: =DAY(Tableau1[[#This Row],[Date]]) -> 11 | Q22: =CONCATENATE(TEXT(Tableau1[[#This Row],[Date]],"aaaa-mm-jj"),"",Tableau1[[#This Row],[Jours travaillées]],"",Tableau1[[#This Row],[NBR de liv.]],"",Tableau1[[#This Row],[KM SOS]],"",Tableau1[[#This Row],[KM Réel]],"",Tableau1[[#This Row],[Revenus des liv.]],"",Tableau1[[#This Row],[Essence SOS]],"",Tableau1[[#This Row],[Ajustements salariales]],"",Tableau1[[#This Row],[Commentaires]],"",Tableau1[[#This Row],[Année]],"",Tableau1[[#This Row],[mois]]) -> 2024-07-11111198,4156,7123,1423,7902024juillet
B23: 17 | C23: 2024-07-15 | D23: 1 | E23: 07:00:00 | F23: 7 | G23: 12 | H23: 213.5 | I23: 205.3 | J23: 120.44 | K23: 28.49 | L23: 0 | N23: =YEAR(Tableau1[[#This Row],[Date]]) -> 2024 | O23: =TEXT(Tableau1[[#This Row],[Date]],"mmmm") -> juillet | P23: =DAY(Tableau1[[#This Row],[Date]]) -> 15 | Q23: =CONCATENATE(TEXT(Tableau1[[#This Row],[Date]],"aaaa-mm-jj"),"",Tableau1[[#This Row],[Jours travaillées]],"",Tableau1[[#This Row],[NBR de liv.]],"",Tableau1[[#This Row],[KM SOS]],"",Tableau1[[#This Row],[KM Réel]],"",Tableau1[[#This Row],[Revenus des liv.]],"",Tableau1[[#This Row],[Essence SOS]],"",Tableau1[[#This Row],[Ajustements salariales]],"",Tableau1[[#This Row],[Commentaires]],"",Tableau1[[#This Row],[Année]],"",Tableau1[[#This Row],[mois]]) -> 2024-07-15112213,5205,3120,4428,4902024juillet
B24: 18 | C24: 2024-07-16 | D24: 1 | E24: 07:00:00 | F24: 7 | G24: 5 | H24: 217.3 | I24: 209 | J24: 102.82 | K24: 29 | L24: 0 | N24: =YEAR(Tableau1[[#This Row],[Date]]) -> 2024 | O24: =TEXT(Tableau1[[#This Row],[Date]],"mmmm") -> juillet | P24: =DAY(Tableau1[[#This Row],[Date]]) -> 16 | Q24: =CONCATENATE(TEXT(Tableau1[[#This Row],[Date]],"aaaa-mm-jj"),"",Tableau1[[#This Row],[Jours travaillées]],"",Tableau1[[#This Row],[NBR de liv.]],"",Tableau1[[#This Row],[KM SOS]],"",Tableau1[[#This Row],[KM Réel]],"",Tableau1[[#This Row],[Revenus des liv.]],"",Tableau1[[#This Row],[Essence SOS]],"",Tableau1[[#This Row],[Ajustements salariales]],"",Tableau1[[#This Row],[Commentaires]],"",Tableau1[[#This Row],[Année]],"",Tableau1[[#This Row],[mois]]) -> 2024-07-1615217,3209102,822902024juillet
B25: 19 | C25: 2024-07-17 | D25: 1 | E25: 07:00:00 | F25: 7 | G25: 11 | H25: 213.9 | I25: 205.7 | J25: 100.5 | K25: 28.54 | L25: 0 | N25: =YEAR(Tableau1[[#This Row],[Date]]) -> 2024 | O25: =TEXT(Tableau1[[#This Row],[Date]],"mmmm") -> juillet | P25: =DAY(Tableau1[[#This Row],[Date]]) -> 17 | Q25: =CONCATENATE(TEXT(Tableau1[[#This Row],[Date]],"aaaa-mm-jj"),"",Tableau1[[#This Row],[Jours travaillées]],"",Tableau1[[#This Row],[NBR de liv.]],"",Tableau1[[#This Row],[KM SOS]],"",Tableau1[[#This Row],[KM Réel]],"",Tableau1[[#This Row],[Revenus des liv.]],"",Tableau1[[#This Row],[Essence SOS]],"",Tableau1[[#This Row],[Ajustements salariales]],"",Tableau1[[#This Row],[Commentaires]],"",Tableau1[[#This Row],[Année]],"",Tableau1[[#This Row],[mois]]) -> 2024-07-17111213,9205,7100,528,5402024juillet
B26: 20 | C26: 2024-07-18 | D26: 1 | E26: 07:00:00 | F26: 7 | G26: 6 | H26: 211.1 | I26: 203 | J26: 64.84 | K26: 28.17 | L26: 0 | N26: =YEAR(Tableau1[[#This Row],[Date]]) -> 2024 | O26: =TEXT(Tableau1[[#This Row],[Date]],"mmmm") -> juillet | P26: =DAY(Tableau1[[#This Row],[Date]]) -> 18 | Q26: =CONCATENATE(TEXT(Tableau1[[#This Row],[Date]],"aaaa-mm-jj"),"",Tableau1[[#This Row],[Jours travaillées]],"",Tableau1[[#This Row],[NBR de liv.]],"",Tableau1[[#This Row],[KM SOS]],"",Tableau1[[#This Row],[KM Réel]],"",Tableau1[[#This Row],[Revenus des liv.]],"",Tableau1[[#This Row],[Essence SOS]],"",Tableau1[[#This Row],[Ajustements salariales]],"",Tableau1[[#This Row],[Commentaires]],"",Tableau1[[#This Row],[Année]],"",Tableau1[[#This Row],[mois]]) -> 2024-07-1816211,120364,8428,1702024juillet
B27: 21 | C27: 2024-07-19 | D27: 1 | E27: 07:00:00 | F27: 7 | G27: 10 | H27: 208.3 | I27: 200.3 | J27: 107.58 | K27: 27.79 | L27: 0 | N27: =YEAR(Tableau1[[#This Row],[Date]]) -> 2024 | O27: =TEXT(Tableau1[[#This Row],[Date]],"mmmm") -> juillet | P27: =DAY(Tableau1[[#This Row],[Date]]) -> 19 | Q27: =CONCATENATE(TEXT(Tableau1[[#This Row],[Date]],"aaaa-mm-jj"),"",Tableau1[[#This Row],[Jours travaillées]],"",Tableau1[[#This Row],[NBR de liv.]],"",Tableau1[[#This Row],[KM SOS]],"",Tableau1[[#This Row],[KM Réel]],"",Tableau1[[#This Row],[Revenus des liv.]],"",Tableau1[[#This Row],[Essence SOS]],"",Tableau1[[#This Row],[Ajustements salariales]],"",Tableau1[[#This Row],[Commentaires]],"",Tableau1[[#This Row],[Année]],"",Tableau1[[#This Row],[mois]]) -> 2024-07-19110208,3200,3107,5827,7902024juillet
B28: 22 | C28: 2024-07-22 | D28: 1 | E28: 07:00:00 | F28: 7 | G28: 10 | H28: 168.1 | I28: 164.7 | J28: 108.74 | K28: 22.83 | L28: 0 | N28: =YEAR(Tableau1[[#This Row],[Date]]) -> 2024 | O28: =TEXT(Tableau1[[#This Row],[Date]],"mmmm") -> juillet | P28: =DAY(Tableau1[[#This Row],[Date]]) -> 22 | Q28: =CONCATENATE(TEXT(Tableau1[[#This Row],[Date]],"aaaa-mm-jj"),"",Tableau1[[#This Row],[Jours travaillées]],"",Tableau1[[#This Row],[NBR de liv.]],"",Tableau1[[#This Row],[KM SOS]],"",Tableau1[[#This Row],[KM Réel]],"",Tableau1[[#This Row],[Revenus des liv.]],"",Tableau1[[#This Row],[Essence SOS]],"",Tableau1[[#This Row],[Ajustements salariales]],"",Tableau1[[#This Row],[Commentaires]],"",Tableau1[[#This Row],[Année]],"",Tableau1[[#This Row],[mois]]) -> 2024-07-22110168,1164,7108,7422,8302024juillet
B29: 23 | C29: 2024-07-23 | D29: 1 | E29: 07:00:00 | F29: 7 | G29: 5 | H29: 188.7 | I29: 184.8 | J29: 89.34 | K29: 25.62 | L29: 0 | N29: =YEAR(Tableau1[[#This Row],[Date]]) -> 2024 | O29: =TEXT(Tableau1[[#This Row],[Date]],"mmmm") -> juillet | P29: =DAY(Tableau1[[#This Row],[Date]]) -> 23 | Q29: =CONCATENATE(TEXT(Tableau1[[#This Row],[Date]],"aaaa-mm-jj"),"",Tableau1[[#This Row],[Jours travaillées]],"",Tableau1[[#This Row],[NBR de liv.]],"",Tableau1[[#This Row],[KM SOS]],"",Tableau1[[#This Row],[KM Réel]],"",Tableau1[[#This Row],[Revenus des liv.]],"",Tableau1[[#This Row],[Essence SOS]],"",Tableau1[[#This Row],[Ajustements salariales]],"",Tableau1[[#This Row],[Commentaires]],"",Tableau1[[#This Row],[Année]],"",Tableau1[[#This Row],[mois]]) -> 2024-07-2315188,7184,889,3425,6202024juillet
B30: 24 | C30: 2024-07-24 | D30: 1 | E30: 07:00:00 | F30: 7 | G30: 11 | H30: 210.4 | I30: 206.1 | J30: 102.66 | K30: 28.57 | L30: 0 | N30: =YEAR(Tableau1[[#This Row],[Date]]) -> 2024 | O30: =TEXT(Tableau1[[#This Row],[Date]],"mmmm") -> juillet | P30: =DAY(Tableau1[[#This Row],[Date]]) -> 24 | Q30: =CONCATENATE(TEXT(Tableau1[[#This Row],[Date]],"aaaa-mm-jj"),"",Tableau1[[#This Row],[Jours travaillées]],"",Tableau1[[#This Row],[NBR de liv.]],"",Tableau1[[#This Row],[KM SOS]],"",Tableau1[[#This Row],[KM Réel]],"",Tableau1[[#This Row],[Revenus des liv.]],"",Tableau1[[#This Row],[Essence SOS]],"",Tableau1[[#This Row],[Ajustements salariales]],"",Tableau1[[#This Row],[Commentaires]],"",Tableau1[[#This Row],[Année]],"",Tableau1[[#This Row],[mois]]) -> 2024-07-24111210,4206,1102,6628,5702024juillet
B31: 25 | C31: 2024-07-25 | D31: 1 | E31: 07:00:00 | F31: 7 | G31: 4 | H31: 187.8 | I31: 184 | J31: 49.52 | K31: 25.51 | L31: 0 | N31: =YEAR(Tableau1[[#This Row],[Date]]) -> 2024 | O31: =TEXT(Tableau1[[#This Row],[Date]],"mmmm") -> juillet | P31: =DAY(Tableau1[[#This Row],[Date]]) -> 25 | Q31: =CONCATENATE(TEXT(Tableau1[[#This Row],[Date]],"aaaa-mm-jj"),"",Tableau1[[#This Row],[Jours travaillées]],"",Tableau1[[#This Row],[NBR de liv.]],"",Tableau1[[#This Row],[KM SOS]],"",Tableau1[[#This Row],[KM Réel]],"",Tableau1[[#This Row],[Revenus des liv.]],"",Tableau1[[#This Row],[Essence SOS]],"",Tableau1[[#This Row],[Ajustements salariales]],"",Tableau1[[#This Row],[Commentaires]],"",Tableau1[[#This Row],[Année]],"",Tableau1[[#This Row],[mois]]) -> 2024-07-2514187,818449,5225,5102024juillet
B32: 26 | C32: 2024-07-29 | D32: 1 | E32: 07:00:00 | F32: 7 | G32: 8 | H32: 246.4 | I32: 276.7 | J32: 111.07 | K32: 33.02 | L32: 0 | N32: =YEAR(Tableau1[[#This Row],[Date]]) -> 2024 | O32: =TEXT(Tableau1[[#This Row],[Date]],"mmmm") -> juillet | P32: =DAY(Tableau1[[#This Row],[Date]]) -> 29 | Q32: =CONCATENATE(TEXT(Tableau1[[#This Row],[Date]],"aaaa-mm-jj"),"",Tableau1[[#This Row],[Jours travaillées]],"",Tableau1[[#This Row],[NBR de liv.]],"",Tableau1[[#This Row],[KM SOS]],"",Tableau1[[#This Row],[KM Réel]],"",Tableau1[[#This Row],[Revenus des liv.]],"",Tableau1[[#This Row],[Essence SOS]],"",Tableau1[[#This Row],[Ajustements salariales]],"",Tableau1[[#This Row],[Commentaires]],"",Tableau1[[#This Row],[Année]],"",Tableau1[[#This Row],[mois]]) -> 2024-07-2918246,4276,7111,0733,0202024juillet
B33: 27 | C33: 2024-07-30 | D33: 1 | E33: 03:30:00 | F33: 3.5 | G33: 3 | H33: 108.4 | I33: 121.7 | J33: 53.39 | K33: 14.52 | L33: 0 | N33: =YEAR(Tableau1[[#This Row],[Date]]) -> 2024 | O33: =TEXT(Tableau1[[#This Row],[Date]],"mmmm") -> juillet | P33: =DAY(Tableau1[[#This Row],[Date]]) -> 30 | Q33: =CONCATENATE(TEXT(Tableau1[[#This Row],[Date]],"aaaa-mm-jj"),"",Tableau1[[#This Row],[Jours travaillées]],"",Tableau1[[#This Row],[NBR de liv.]],"",Tableau1[[#This Row],[KM SOS]],"",Tableau1[[#This Row],[KM Réel]],"",Tableau1[[#This Row],[Revenus des liv.]],"",Tableau1[[#This Row],[Essence SOS]],"",Tableau1[[#This Row],[Ajustements salariales]],"",Tableau1[[#This Row],[Commentaires]],"",Tableau1[[#This Row],[Année]],"",Tableau1[[#This Row],[mois]]) -> 2024-07-3013108,4121,753,3914,5202024juillet
B34: 28 | C34: 2024-07-31 | D34: 1 | E34: 03:30:00 | F34: 3.5 | G34: 3 | H34: 130.2 | I34: 146.2 | J34: 43.74 | K34: 17.45 | L34: 0 | N34: =YEAR(Tableau1[[#This Row],[Date]]) -> 2024 | O34: =TEXT(Tableau1[[#This Row],[Date]],"mmmm") -> juillet | P34: =DAY(Tableau1[[#This Row],[Date]]) -> 31 | Q34: =CONCATENATE(TEXT(Tableau1[[#This Row],[Date]],"aaaa-mm-jj"),"",Tableau1[[#This Row],[Jours travaillées]],"",Tableau1[[#This Row],[NBR de liv.]],"",Tableau1[[#This Row],[KM SOS]],"",Tableau1[[#This Row],[KM Réel]],"",Tableau1[[#This Row],[Revenus des liv.]],"",Tableau1[[#This Row],[Essence SOS]],"",Tableau1[[#This Row],[Ajustements salariales]],"",Tableau1[[#This Row],[Commentaires]],"",Tableau1[[#This Row],[Année]],"",Tableau1[[#This Row],[mois]]) -> 2024-07-3113130,2146,243,7417,4502024juillet
B35: 29 | C35: 2024-08-01 | D35: 1 | E35: 07:00:00 | F35: 7 | G35: 9 | H35: 90.9 | I35: 102.1 | J35: 59.98 | K35: 12.19 | L35: 0 | N35: =YEAR(Tableau1[[#This Row],[Date]]) -> 2024 | O35: =TEXT(Tableau1[[#This Row],[Date]],"mmmm") -> août | P35: =DAY(Tableau1[[#This Row],[Date]]) -> 1 | Q35: =CONCATENATE(TEXT(Tableau1[[#This Row],[Date]],"aaaa-mm-jj"),"",Tableau1[[#This Row],[Jours travaillées]],"",Tableau1[[#This Row],[NBR de liv.]],"",Tableau1[[#This Row],[KM SOS]],"",Tableau1[[#This Row],[KM Réel]],"",Tableau1[[#This Row],[Revenus des liv.]],"",Tableau1[[#This Row],[Essence SOS]],"",Tableau1[[#This Row],[Ajustements salariales]],"",Tableau1[[#This Row],[Commentaires]],"",Tableau1[[#This Row],[Année]],"",Tableau1[[#This Row],[mois]]) -> 2024-08-011990,9102,159,9812,1902024août
B36: 30 | C36: 2024-08-05 | D36: 1 | E36: 07:00:00 | F36: 7 | G36: 12 | H36: 181.6 | I36: 160.1 | J36: 103.51 | K36: 21.92 | L36: 0 | N36: =YEAR(Tableau1[[#This Row],[Date]]) -> 2024 | O36: =TEXT(Tableau1[[#This Row],[Date]],"mmmm") -> août | P36: =DAY(Tableau1[[#This Row],[Date]]) -> 5 | Q36: =CONCATENATE(TEXT(Tableau1[[#This Row],[Date]],"aaaa-mm-jj"),"",Tableau1[[#This Row],[Jours travaillées]],"",Tableau1[[#This Row],[NBR de liv.]],"",Tableau1[[#This Row],[KM SOS]],"",Tableau1[[#This Row],[KM Réel]],"",Tableau1[[#This Row],[Revenus des liv.]],"",Tableau1[[#This Row],[Essence SOS]],"",Tableau1[[#This Row],[Ajustements salariales]],"",Tableau1[[#This Row],[Commentaires]],"",Tableau1[[#This Row],[Année]],"",Tableau1[[#This Row],[mois]]) -> 2024-08-05112181,6160,1103,5121,9202024août
B37: 31 | C37: 2024-08-06 | D37: 1 | E37: 07:00:00 | F37: 7 | G37: 6 | H37: 266.7 | I37: 235.1 | J37: 123.31 | K37: 32.19 | L37: 0 | N37: =YEAR(Tableau1[[#This Row],[Date]]) -> 2024 | O37: =TEXT(Tableau1[[#This Row],[Date]],"mmmm") -> août | P37: =DAY(Tableau1[[#This Row],[Date]]) -> 6 | Q37: =CONCATENATE(TEXT(Tableau1[[#This Row],[Date]],"aaaa-mm-jj"),"",Tableau1[[#This Row],[Jours travaillées]],"",Tableau1[[#This Row],[NBR de liv.]],"",Tableau1[[#This Row],[KM SOS]],"",Tableau1[[#This Row],[KM Réel]],"",Tableau1[[#This Row],[Revenus des liv.]],"",Tableau1[[#This Row],[Essence SOS]],"",Tableau1[[#This Row],[Ajustements salariales]],"",Tableau1[[#This Row],[Commentaires]],"",Tableau1[[#This Row],[Année]],"",Tableau1[[#This Row],[mois]]) -> 2024-08-0616266,7235,1123,3132,1902024août
B38: 32 | C38: 2024-08-07 | D38: 1 | E38: 07:00:00 | F38: 7 | G38: 8 | H38: 206.3 | I38: 181.9 | J38: 93.45 | K38: 24.91 | L38: 0 | N38: =YEAR(Tableau1[[#This Row],[Date]]) -> 2024 | O38: =TEXT(Tableau1[[#This Row],[Date]],"mmmm") -> août | P38: =DAY(Tableau1[[#This Row],[Date]]) -> 7 | Q38: =CONCATENATE(TEXT(Tableau1[[#This Row],[Date]],"aaaa-mm-jj"),"",Tableau1[[#This Row],[Jours travaillées]],"",Tableau1[[#This Row],[NBR de liv.]],"",Tableau1[[#This Row],[KM SOS]],"",Tableau1[[#This Row],[KM Réel]],"",Tableau1[[#This Row],[Revenus des liv.]],"",Tableau1[[#This Row],[Essence SOS]],"",Tableau1[[#This Row],[Ajustements salariales]],"",Tableau1[[#This Row],[Commentaires]],"",Tableau1[[#This Row],[Année]],"",Tableau1[[#This Row],[mois]]) -> 2024-08-0718206,3181,993,4524,9102024août
B39: 33 | C39: 2024-08-08 | D39: 1 | E39: 07:00:00 | F39: 7 | G39: 8 | H39: 223.4 | I39: 197 | J39: 100.59 | K39: 26.97 | L39: 0 | N39: =YEAR(Tableau1[[#This Row],[Date]]) -> 2024 | O39: =TEXT(Tableau1[[#This Row],[Date]],"mmmm") -> août | P39: =DAY(Tableau1[[#This Row],[Date]]) -> 8 | Q39: =CONCATENATE(TEXT(Tableau1[[#This Row],[Date]],"aaaa-mm-jj"),"",Tableau1[[#This Row],[Jours travaillées]],"",Tableau1[[#This Row],[NBR de liv.]],"",Tableau1[[#This Row],[KM SOS]],"",Tableau1[[#This Row],[KM Réel]],"",Tableau1[[#This Row],[Revenus des liv.]],"",Tableau1[[#This Row],[Essence SOS]],"",Tableau1[[#This Row],[Ajustements salariales]],"",Tableau1[[#This Row],[Commentaires]],"",Tableau1[[#This Row],[Année]],"",Tableau1[[#This Row],[mois]]) -> 2024-08-0818223,4197100,5926,9702024août
B40: 34 | C40: 2024-08-12 | D40: 1 | E40: 07:00:00 | F40: 7 | G40: 5 | H40: 233.5 | I40: 233.5 | J40: 85.65 | K40: 30.13 | L40: 0 | N40: =YEAR(Tableau1[[#This Row],[Date]]) -> 2024 | O40: =TEXT(Tableau1[[#This Row],[Date]],"mmmm") -> août | P40: =DAY(Tableau1[[#This Row],[Date]]) -> 12 | Q40: =CONCATENATE(TEXT(Tableau1[[#This Row],[Date]],"aaaa-mm-jj"),"",Tableau1[[#This Row],[Jours travaillées]],"",Tableau1[[#This Row],[NBR de liv.]],"",Tableau1[[#This Row],[KM SOS]],"",Tableau1[[#This Row],[KM Réel]],"",Tableau1[[#This Row],[Revenus des liv.]],"",Tableau1[[#This Row],[Essence SOS]],"",Tableau1[[#This Row],[Ajustements salariales]],"",Tableau1[[#This Row],[Commentaires]],"",Tableau1[[#This Row],[Année]],"",Tableau1[[#This Row],[mois]]) -> 2024-08-1215233,5233,585,6530,1302024août
B41: 35 | C41: 2024-08-13 | D41: 1 | E41: 07:00:00 | F41: 7 | G41: 10 | H41: 184.4 | I41: 184.4 | J41: 102.51 | K41: 23.79 | L41: 0 | N41: =YEAR(Tableau1[[#This Row],[Date]]) -> 2024 | O41: =TEXT(Tableau1[[#This Row],[Date]],"mmmm") -> août | P41: =DAY(Tableau1[[#This Row],[Date]]) -> 13 | Q41: =CONCATENATE(TEXT(Tableau1[[#This Row],[Date]],"aaaa-mm-jj"),"",Tableau1[[#This Row],[Jours travaillées]],"",Tableau1[[#This Row],[NBR de liv.]],"",Tableau1[[#This Row],[KM SOS]],"",Tableau1[[#This Row],[KM Réel]],"",Tableau1[[#This Row],[Revenus des liv.]],"",Tableau1[[#This Row],[Essence SOS]],"",Tableau1[[#This Row],[Ajustements salariales]],"",Tableau1[[#This Row],[Commentaires]],"",Tableau1[[#This Row],[Année]],"",Tableau1[[#This Row],[mois]]) -> 2024-08-13110184,4184,4102,5123,7902024août
B42: 36 | C42: 2024-08-14 | D42: 1 | E42: 07:00:00 | F42: 7 | G42: 7 | H42: 159.5 | I42: 159.5 | J42: 89.4 | K42: 20.58 | L42: 0 | N42: =YEAR(Tableau1[[#This Row],[Date]]) -> 2024 | O42: =TEXT(Tableau1[[#This Row],[Date]],"mmmm") -> août | P42: =DAY(Tableau1[[#This Row],[Date]]) -> 14 | Q42: =CONCATENATE(TEXT(Tableau1[[#This Row],[Date]],"aaaa-mm-jj"),"",Tableau1[[#This Row],[Jours travaillées]],"",Tableau1[[#This Row],[NBR de liv.]],"",Tableau1[[#This Row],[KM SOS]],"",Tableau1[[#This Row],[KM Réel]],"",Tableau1[[#This Row],[Revenus des liv.]],"",Tableau1[[#This Row],[Essence SOS]],"",Tableau1[[#This Row],[Ajustements salariales]],"",Tableau1[[#This Row],[Commentaires]],"",Tableau1[[#This Row],[Année]],"",Tableau1[[#This Row],[mois]]) -> 2024-08-1417159,5159,589,420,5802024août
B43: 37 | C43: 2024-08-15 | D43: 1 | E43: 07:00:00 | F43: 7 | G43: 10 | H43: 209.7 | I43: 209.7 | J43: 93.35 | K43: 27.06 | L43: 0 | N43: =YEAR(Tableau1[[#This Row],[Date]]) -> 2024 | O43: =TEXT(Tableau1[[#This Row],[Date]],"mmmm") -> août | P43: =DAY(Tableau1[[#This Row],[Date]]) -> 15 | Q43: =CONCATENATE(TEXT(Tableau1[[#This Row],[Date]],"aaaa-mm-jj"),"",Tableau1[[#This Row],[Jours travaillées]],"",Tableau1[[#This Row],[NBR de liv.]],"",Tableau1[[#This Row],[KM SOS]],"",Tableau1[[#This Row],[KM Réel]],"",Tableau1[[#This Row],[Revenus des liv.]],"",Tableau1[[#This Row],[Essence SOS]],"",Tableau1[[#This Row],[Ajustements salariales]],"",Tableau1[[#This Row],[Commentaires]],"",Tableau1[[#This Row],[Année]],"",Tableau1[[#This Row],[mois]]) -> 2024-08-15110209,7209,793,3527,0602024août
B44: 38 | C44: 2024-08-19 | D44: 1 | E44: 07:00:00 | F44: 7 | G44: 9 | H44: 188.8 | I44: 160.7 | J44: 85.07 | K44: 26.14 | L44: 0 | N44: =YEAR(Tableau1[[#This Row],[Date]]) -> 2024 | O44: =TEXT(Tableau1[[#This Row],[Date]],"mmmm") -> août | P44: =DAY(Tableau1[[#This Row],[Date]]) -> 19 | Q44: =CONCATENATE(TEXT(Tableau1[[#This Row],[Date]],"aaaa-mm-jj"),"",Tableau1[[#This Row],[Jours travaillées]],"",Tableau1[[#This Row],[NBR de liv.]],"",Tableau1[[#This Row],[KM SOS]],"",Tableau1[[#This Row],[KM Réel]],"",Tableau1[[#This Row],[Revenus des liv.]],"",Tableau1[[#This Row],[Essence SOS]],"",Tableau1[[#This Row],[Ajustements salariales]],"",Tableau1[[#This Row],[Commentaires]],"",Tableau1[[#This Row],[Année]],"",Tableau1[[#This Row],[mois]]) -> 2024-08-1919188,8160,785,0726,1402024août
B45: 39 | C45: 2024-08-20 | D45: 1 | E45: 07:00:00 | F45: 7 | G45: 8 | H45: 206 | I45: 175.3 | J45: 68.58 | K45: 28.52 | L45: 0 | N45: =YEAR(Tableau1[[#This Row],[Date]]) -> 2024 | O45: =TEXT(Tableau1[[#This Row],[Date]],"mmmm") -> août | P45: =DAY(Tableau1[[#This Row],[Date]]) -> 20 | Q45: =CONCATENATE(TEXT(Tableau1[[#This Row],[Date]],"aaaa-mm-jj"),"",Tableau1[[#This Row],[Jours travaillées]],"",Tableau1[[#This Row],[NBR de liv.]],"",Tableau1[[#This Row],[KM SOS]],"",Tableau1[[#This Row],[KM Réel]],"",Tableau1[[#This Row],[Revenus des liv.]],"",Tableau1[[#This Row],[Essence SOS]],"",Tableau1[[#This Row],[Ajustements salariales]],"",Tableau1[[#This Row],[Commentaires]],"",Tableau1[[#This Row],[Année]],"",Tableau1[[#This Row],[mois]]) -> 2024-08-2018206175,368,5828,5202024août
B46: 40 | C46: 2024-08-21 | D46: 1 | E46: 03:30:00 | F46: 3.5 | G46: 3 | H46: 108.6 | I46: 92.4 | J46: 35.08 | K46: 15.03 | L46: 0 | N46: =YEAR(Tableau1[[#This Row],[Date]]) -> 2024 | O46: =TEXT(Tableau1[[#This Row],[Date]],"mmmm") -> août | P46: =DAY(Tableau1[[#This Row],[Date]]) -> 21 | Q46: =CONCATENATE(TEXT(Tableau1[[#This Row],[Date]],"aaaa-mm-jj"),"",Tableau1[[#This Row],[Jours travaillées]],"",Tableau1[[#This Row],[NBR de liv.]],"",Tableau1[[#This Row],[KM SOS]],"",Tableau1[[#This Row],[KM Réel]],"",Tableau1[[#This Row],[Revenus des liv.]],"",Tableau1[[#This Row],[Essence SOS]],"",Tableau1[[#This Row],[Ajustements salariales]],"",Tableau1[[#This Row],[Commentaires]],"",Tableau1[[#This Row],[Année]],"",Tableau1[[#This Row],[mois]]) -> 2024-08-2113108,692,435,0815,0302024août
B47: 41 | C47: 2024-08-22 | D47: 1 | E47: 07:00:00 | F47: 7 | G47: 11 | H47: 267.6 | I47: 227.8 | J47: 167.17 | K47: 37.06 | L47: 0 | N47: =YEAR(Tableau1[[#This Row],[Date]]) -> 2024 | O47: =TEXT(Tableau1[[#This Row],[Date]],"mmmm") -> août | P47: =DAY(Tableau1[[#This Row],[Date]]) -> 22 | Q47: =CONCATENATE(TEXT(Tableau1[[#This Row],[Date]],"aaaa-mm-jj"),"",Tableau1[[#This Row],[Jours travaillées]],"",Tableau1[[#This Row],[NBR de liv.]],"",Tableau1[[#This Row],[KM SOS]],"",Tableau1[[#This Row],[KM Réel]],"",Tableau1[[#This Row],[Revenus des liv.]],"",Tableau1[[#This Row],[Essence SOS]],"",Tableau1[[#This Row],[Ajustements salariales]],"",Tableau1[[#This Row],[Commentaires]],"",Tableau1[[#This Row],[Année]],"",Tableau1[[#This Row],[mois]]) -> 2024-08-22111267,6227,8167,1737,0602024août
B48: 42 | C48: 2024-08-26 | D48: 1 | E48: 07:00:00 | F48: 7 | G48: 14 | H48: 223.3 | I48: 204.4 | J48: 120.96 | K48: 30.03 | L48: 0 | N48: =YEAR(Tableau1[[#This Row],[Date]]) -> 2024 | O48: =TEXT(Tableau1[[#This Row],[Date]],"mmmm") -> août | P48: =DAY(Tableau1[[#This Row],[Date]]) -> 26 | Q48: =CONCATENATE(TEXT(Tableau1[[#This Row],[Date]],"aaaa-mm-jj"),"",Tableau1[[#This Row],[Jours travaillées]],"",Tableau1[[#This Row],[NBR de liv.]],"",Tableau1[[#This Row],[KM SOS]],"",Tableau1[[#This Row],[KM Réel]],"",Tableau1[[#This Row],[Revenus des liv.]],"",Tableau1[[#This Row],[Essence SOS]],"",Tableau1[[#This Row],[Ajustements salariales]],"",Tableau1[[#This Row],[Commentaires]],"",Tableau1[[#This Row],[Année]],"",Tableau1[[#This Row],[mois]]) -> 2024-08-26114223,3204,4120,9630,0302024août
B49: 43 | C49: 2024-08-27 | D49: 1 | E49: 07:00:00 | F49: 7 | G49: 10 | H49: 249.6 | I49: 228.4 | J49: 84.89 | K49: 33.55 | L49: 0 | N49: =YEAR(Tableau1[[#This Row],[Date]]) -> 2024 | O49: =TEXT(Tableau1[[#This Row],[Date]],"mmmm") -> août | P49: =DAY(Tableau1[[#This Row],[Date]]) -> 27 | Q49: =CONCATENATE(TEXT(Tableau1[[#This Row],[Date]],"aaaa-mm-jj"),"",Tableau1[[#This Row],[Jours travaillées]],"",Tableau1[[#This Row],[NBR de liv.]],"",Tableau1[[#This Row],[KM SOS]],"",Tableau1[[#This Row],[KM Réel]],"",Tableau1[[#This Row],[Revenus des liv.]],"",Tableau1[[#This Row],[Essence SOS]],"",Tableau1[[#This Row],[Ajustements salariales]],"",Tableau1[[#This Row],[Commentaires]],"",Tableau1[[#This Row],[Année]],"",Tableau1[[#This Row],[mois]]) -> 2024-08-27110249,6228,484,8933,5502024août
B50: 44 | C50: 2024-08-28 | D50: 1 | E50: 07:00:00 | F50: 7 | G50: 10 | H50: 203.6 | I50: 186.3 | J50: 91.31 | K50: 27.37 | L50: 0 | N50: =YEAR(Tableau1[[#This Row],[Date]]) -> 2024 | O50: =TEXT(Tableau1[[#This Row],[Date]],"mmmm") -> août | P50: =DAY(Tableau1[[#This Row],[Date]]) -> 28 | Q50: =CONCATENATE(TEXT(Tableau1[[#This Row],[Date]],"aaaa-mm-jj"),"",Tableau1[[#This Row],[Jours travaillées]],"",Tableau1[[#This Row],[NBR de liv.]],"",Tableau1[[#This Row],[KM SOS]],"",Tableau1[[#This Row],[KM Réel]],"",Tableau1[[#This Row],[Revenus des liv.]],"",Tableau1[[#This Row],[Essence SOS]],"",Tableau1[[#This Row],[Ajustements salariales]],"",Tableau1[[#This Row],[Commentaires]],"",Tableau1[[#This Row],[Année]],"",Tableau1[[#This Row],[mois]]) -> 2024-08-28110203,6186,391,3127,3702024août
B51: 45 | C51: 2024-08-29 | D51: 1 | E51: 07:00:00 | F51: 7 | G51: 10 | H51: 144.6 | I51: 132.3 | J51: 85.13 | K51: 19.44 | L51: 0 | N51: =YEAR(Tableau1[[#This Row],[Date]]) -> 2024 | O51: =TEXT(Tableau1[[#This Row],[Date]],"mmmm") -> août | P51: =DAY(Tableau1[[#This Row],[Date]]) -> 29 | Q51: =CONCATENATE(TEXT(Tableau1[[#This Row],[Date]],"aaaa-mm-jj"),"",Tableau1[[#This Row],[Jours travaillées]],"",Tableau1[[#This Row],[NBR de liv.]],"",Tableau1[[#This Row],[KM SOS]],"",Tableau1[[#This Row],[KM Réel]],"",Tableau1[[#This Row],[Revenus des liv.]],"",Tableau1[[#This Row],[Essence SOS]],"",Tableau1[[#This Row],[Ajustements salariales]],"",Tableau1[[#This Row],[Commentaires]],"",Tableau1[[#This Row],[Année]],"",Tableau1[[#This Row],[mois]]) -> 2024-08-29110144,6132,385,1319,4402024août
B52: =ROW(B52)-6 -> 46 | C52: 2024-09-03 | D52: 1 | E52: 07:00:00 | F52: 7 | G52: 8 | H52: 291.6 | I52: 271.7 | J52: 102.67 | K52: 40.37 | L52: 0 | N52: =YEAR(Tableau1[[#This Row],[Date]]) -> 2024 | O52: =TEXT(Tableau1[[#This Row],[Date]],"mmmm") -> septembre | P52: =DAY(Tableau1[[#This Row],[Date]]) -> 3 | Q52: =CONCATENATE(TEXT(Tableau1[[#This Row],[Date]],"aaaa-mm-jj"),"",Tableau1[[#This Row],[Jours travaillées]],"",Tableau1[[#This Row],[NBR de liv.]],"",Tableau1[[#This Row],[KM SOS]],"",Tableau1[[#This Row],[KM Réel]],"",Tableau1[[#This Row],[Revenus des liv.]],"",Tableau1[[#This Row],[Essence SOS]],"",Tableau1[[#This Row],[Ajustements salariales]],"",Tableau1[[#This Row],[Commentaires]],"",Tableau1[[#This Row],[Année]],"",Tableau1[[#This Row],[mois]]) -> 2024-09-0318291,6271,7102,6740,3702024septembre
B53: 47 | C53: 2024-09-04 | D53: 1 | E53: 07:00:00 | F53: 7 | G53: 6 | H53: 278.4 | I53: 259.4 | J53: 108.8 | K53: 38.54 | L53: 0 | N53: =YEAR(Tableau1[[#This Row],[Date]]) -> 2024 | O53: =TEXT(Tableau1[[#This Row],[Date]],"mmmm") -> septembre | P53: =DAY(Tableau1[[#This Row],[Date]]) -> 4 | Q53: =CONCATENATE(TEXT(Tableau1[[#This Row],[Date]],"aaaa-mm-jj"),"",Tableau1[[#This Row],[Jours travaillées]],"",Tableau1[[#This Row],[NBR de liv.]],"",Tableau1[[#This Row],[KM SOS]],"",Tableau1[[#This Row],[KM Réel]],"",Tableau1[[#This Row],[Revenus des liv.]],"",Tableau1[[#This Row],[Essence SOS]],"",Tableau1[[#This Row],[Ajustements salariales]],"",Tableau1[[#This Row],[Commentaires]],"",Tableau1[[#This Row],[Année]],"",Tableau1[[#This Row],[mois]]) -> 2024-09-0416278,4259,4108,838,5402024septembre
B54: 48 | C54: 2024-09-05 | D54: 1 | E54: 07:00:00 | F54: 7 | G54: 9 | H54: 289.9 | I54: 270.1 | J54: 185.25 | K54: 40.13 | L54: 0 | N54: =YEAR(Tableau1[[#This Row],[Date]]) -> 2024 | O54: =TEXT(Tableau1[[#This Row],[Date]],"mmmm") -> septembre | P54: =DAY(Tableau1[[#This Row],[Date]]) -> 5 | Q54: =CONCATENATE(TEXT(Tableau1[[#This Row],[Date]],"aaaa-mm-jj"),"",Tableau1[[#This Row],[Jours travaillées]],"",Tableau1[[#This Row],[NBR de liv.]],"",Tableau1[[#This Row],[KM SOS]],"",Tableau1[[#This Row],[KM Réel]],"",Tableau1[[#This Row],[Revenus des liv.]],"",Tableau1[[#This Row],[Essence SOS]],"",Tableau1[[#This Row],[Ajustements salariales]],"",Tableau1[[#This Row],[Commentaires]],"",Tableau1[[#This Row],[Année]],"",Tableau1[[#This Row],[mois]]) -> 2024-09-0519289,9270,1185,2540,1302024septembre
B55: 49 | C55: 2024-09-09 | D55: 1 | E55: 07:00:00 | F55: 7 | G55: 10 | H55: 238.1 | I55: 193.6 | J55: 157.17 | K55: 29.14 | L55: 0 | N55: =YEAR(Tableau1[[#This Row],[Date]]) -> 2024 | O55: =TEXT(Tableau1[[#This Row],[Date]],"mmmm") -> septembre | P55: =DAY(Tableau1[[#This Row],[Date]]) -> 9 | Q55: =CONCATENATE(TEXT(Tableau1[[#This Row],[Date]],"aaaa-mm-jj"),"",Tableau1[[#This Row],[Jours travaillées]],"",Tableau1[[#This Row],[NBR de liv.]],"",Tableau1[[#This Row],[KM SOS]],"",Tableau1[[#This Row],[KM Réel]],"",Tableau1[[#This Row],[Revenus des liv.]],"",Tableau1[[#This Row],[Essence SOS]],"",Tableau1[[#This Row],[Ajustements salariales]],"",Tableau1[[#This Row],[Commentaires]],"",Tableau1[[#This Row],[Année]],"",Tableau1[[#This Row],[mois]]) -> 2024-09-09110238,1193,6157,1729,1402024septembre
B56: 50 | C56: 2024-09-10 | D56: 1 | E56: 07:00:00 | F56: 7 | G56: 10 | H56: 213.7 | I56: 173.8 | J56: 100.77 | K56: 26.16 | L56: 0 | N56: =YEAR(Tableau1[[#This Row],[Date]]) -> 2024 | O56: =TEXT(Tableau1[[#This Row],[Date]],"mmmm") -> septembre | P56: =DAY(Tableau1[[#This Row],[Date]]) -> 10 | Q56: =CONCATENATE(TEXT(Tableau1[[#This Row],[Date]],"aaaa-mm-jj"),"",Tableau1[[#This Row],[Jours travaillées]],"",Tableau1[[#This Row],[NBR de liv.]],"",Tableau1[[#This Row],[KM SOS]],"",Tableau1[[#This Row],[KM Réel]],"",Tableau1[[#This Row],[Revenus des liv.]],"",Tableau1[[#This Row],[Essence SOS]],"",Tableau1[[#This Row],[Ajustements salariales]],"",Tableau1[[#This Row],[Commentaires]],"",Tableau1[[#This Row],[Année]],"",Tableau1[[#This Row],[mois]]) -> 2024-09-10110213,7173,8100,7726,1602024septembre
B57: 51 | C57: 2024-09-11 | D57: 1 | E57: 07:00:00 | F57: 7 | G57: 10 | H57: 242.3 | I57: 197 | J57: 101.8 | K57: 29.65 | L57: 0 | N57: =YEAR(Tableau1[[#This Row],[Date]]) -> 2024 | O57: =TEXT(Tableau1[[#This Row],[Date]],"mmmm") -> septembre | P57: =DAY(Tableau1[[#This Row],[Date]]) -> 11 | Q57: =CONCATENATE(TEXT(Tableau1[[#This Row],[Date]],"aaaa-mm-jj"),"",Tableau1[[#This Row],[Jours travaillées]],"",Tableau1[[#This Row],[NBR de liv.]],"",Tableau1[[#This Row],[KM SOS]],"",Tableau1[[#This Row],[KM Réel]],"",Tableau1[[#This Row],[Revenus des liv.]],"",Tableau1[[#This Row],[Essence SOS]],"",Tableau1[[#This Row],[Ajustements salariales]],"",Tableau1[[#This Row],[Commentaires]],"",Tableau1[[#This Row],[Année]],"",Tableau1[[#This Row],[mois]]) -> 2024-09-11110242,3197101,829,6502024septembre
B58: 52 | C58: 2024-09-12 | D58: 1 | E58: 07:00:00 | F58: 7 | G58: 11 | H58: 283 | I58: 230.1 | J58: 107.61 | K58: 34.63 | L58: 0 | N58: =YEAR(Tableau1[[#This Row],[Date]]) -> 2024 | O58: =TEXT(Tableau1[[#This Row],[Date]],"mmmm") -> septembre | P58: =DAY(Tableau1[[#This Row],[Date]]) -> 12 | Q58: =CONCATENATE(TEXT(Tableau1[[#This Row],[Date]],"aaaa-mm-jj"),"",Tableau1[[#This Row],[Jours travaillées]],"",Tableau1[[#This Row],[NBR de liv.]],"",Tableau1[[#This Row],[KM SOS]],"",Tableau1[[#This Row],[KM Réel]],"",Tableau1[[#This Row],[Revenus des liv.]],"",Tableau1[[#This Row],[Essence SOS]],"",Tableau1[[#This Row],[Ajustements salariales]],"",Tableau1[[#This Row],[Commentaires]],"",Tableau1[[#This Row],[Année]],"",Tableau1[[#This Row],[mois]]) -> 2024-09-12111283230,1107,6134,6302024septembre
B59: 53 | C59: 2024-09-16 | D59: 1 | E59: 07:00:00 | F59: 7 | G59: 9 | H59: 237.4 | I59: 167.5 | J59: 103.34 | K59: 32.21 | L59: 0 | N59: =YEAR(Tableau1[[#This Row],[Date]]) -> 2024 | O59: =TEXT(Tableau1[[#This Row],[Date]],"mmmm") -> septembre | P59: =DAY(Tableau1[[#This Row],[Date]]) -> 16 | Q59: =CONCATENATE(TEXT(Tableau1[[#This Row],[Date]],"aaaa-mm-jj"),"",Tableau1[[#This Row],[Jours travaillées]],"",Tableau1[[#This Row],[NBR de liv.]],"",Tableau1[[#This Row],[KM SOS]],"",Tableau1[[#This Row],[KM Réel]],"",Tableau1[[#This Row],[Revenus des liv.]],"",Tableau1[[#This Row],[Essence SOS]],"",Tableau1[[#This Row],[Ajustements salariales]],"",Tableau1[[#This Row],[Commentaires]],"",Tableau1[[#This Row],[Année]],"",Tableau1[[#This Row],[mois]]) -> 2024-09-1619237,4167,5103,3432,2102024septembre
B60: 54 | C60: 2024-09-17 | D60: 1 | E60: 07:00:00 | F60: 7 | G60: 15 | H60: 257.1 | I60: 181.4 | J60: 135.68 | K60: 34.88 | L60: 0 | N60: =YEAR(Tableau1[[#This Row],[Date]]) -> 2024 | O60: =TEXT(Tableau1[[#This Row],[Date]],"mmmm") -> septembre | P60: =DAY(Tableau1[[#This Row],[Date]]) -> 17 | Q60: =CONCATENATE(TEXT(Tableau1[[#This Row],[Date]],"aaaa-mm-jj"),"",Tableau1[[#This Row],[Jours travaillées]],"",Tableau1[[#This Row],[NBR de liv.]],"",Tableau1[[#This Row],[KM SOS]],"",Tableau1[[#This Row],[KM Réel]],"",Tableau1[[#This Row],[Revenus des liv.]],"",Tableau1[[#This Row],[Essence SOS]],"",Tableau1[[#This Row],[Ajustements salariales]],"",Tableau1[[#This Row],[Commentaires]],"",Tableau1[[#This Row],[Année]],"",Tableau1[[#This Row],[mois]]) -> 2024-09-17115257,1181,4135,6834,8802024septembre
B61: 55 | C61: 2024-09-18 | D61: 1 | E61: 07:00:00 | F61: 7 | G61: 9 | H61: 170.1 | I61: 120 | J61: 70.08 | K61: 23.08 | L61: 0 | N61: =YEAR(Tableau1[[#This Row],[Date]]) -> 2024 | O61: =TEXT(Tableau1[[#This Row],[Date]],"mmmm") -> septembre | P61: =DAY(Tableau1[[#This Row],[Date]]) -> 18 | Q61: =CONCATENATE(TEXT(Tableau1[[#This Row],[Date]],"aaaa-mm-jj"),"",Tableau1[[#This Row],[Jours travaillées]],"",Tableau1[[#This Row],[NBR de liv.]],"",Tableau1[[#This Row],[KM SOS]],"",Tableau1[[#This Row],[KM Réel]],"",Tableau1[[#This Row],[Revenus des liv.]],"",Tableau1[[#This Row],[Essence SOS]],"",Tableau1[[#This Row],[Ajustements salariales]],"",Tableau1[[#This Row],[Commentaires]],"",Tableau1[[#This Row],[Année]],"",Tableau1[[#This Row],[mois]]) -> 2024-09-1819170,112070,0823,0802024septembre
B62: 56 | C62: 2024-09-19 | D62: 1 | E62: 07:00:00 | F62: 7 | G62: 8 | H62: 229.3 | I62: 161.8 | J62: 106.22 | K62: 31.11 | L62: 0 | N62: =YEAR(Tableau1[[#This Row],[Date]]) -> 2024 | O62: =TEXT(Tableau1[[#This Row],[Date]],"mmmm") -> septembre | P62: =DAY(Tableau1[[#This Row],[Date]]) -> 19 | Q62: =CONCATENATE(TEXT(Tableau1[[#This Row],[Date]],"aaaa-mm-jj"),"",Tableau1[[#This Row],[Jours travaillées]],"",Tableau1[[#This Row],[NBR de liv.]],"",Tableau1[[#This Row],[KM SOS]],"",Tableau1[[#This Row],[KM Réel]],"",Tableau1[[#This Row],[Revenus des liv.]],"",Tableau1[[#This Row],[Essence SOS]],"",Tableau1[[#This Row],[Ajustements salariales]],"",Tableau1[[#This Row],[Commentaires]],"",Tableau1[[#This Row],[Année]],"",Tableau1[[#This Row],[mois]]) -> 2024-09-1918229,3161,8106,2231,1102024septembre
B63: 57 | C63: 2024-09-23 | D63: 1 | E63: 07:00:00 | F63: 7 | G63: 3 | H63: 268.49 | I63: 303.2 | J63: 85.97 | K63: 36.58 | L63: 0 | N63: =YEAR(Tableau1[[#This Row],[Date]]) -> 2024 | O63: =TEXT(Tableau1[[#This Row],[Date]],"mmmm") -> septembre | P63: =DAY(Tableau1[[#This Row],[Date]]) -> 23 | Q63: =CONCATENATE(TEXT(Tableau1[[#This Row],[Date]],"aaaa-mm-jj"),"",Tableau1[[#This Row],[Jours travaillées]],"",Tableau1[[#This Row],[NBR de liv.]],"",Tableau1[[#This Row],[KM SOS]],"",Tableau1[[#This Row],[KM Réel]],"",Tableau1[[#This Row],[Revenus des liv.]],"",Tableau1[[#This Row],[Essence SOS]],"",Tableau1[[#This Row],[Ajustements salariales]],"",Tableau1[[#This Row],[Commentaires]],"",Tableau1[[#This Row],[Année]],"",Tableau1[[#This Row],[mois]]) -> 2024-09-2313268,49303,285,9736,5802024septembre
B64: 58 | C64: 2024-09-24 | D64: 1 | E64: 07:00:00 | F64: 7 | G64: 9 | H64: 138.67 | I64: 156.6 | J64: 73.06 | K64: 18.89 | L64: 0 | N64: =YEAR(Tableau1[[#This Row],[Date]]) -> 2024 | O64: =TEXT(Tableau1[[#This Row],[Date]],"mmmm") -> septembre | P64: =DAY(Tableau1[[#This Row],[Date]]) -> 24 | Q64: =CONCATENATE(TEXT(Tableau1[[#This Row],[Date]],"aaaa-mm-jj"),"",Tableau1[[#This Row],[Jours travaillées]],"",Tableau1[[#This Row],[NBR de liv.]],"",Tableau1[[#This Row],[KM SOS]],"",Tableau1[[#This Row],[KM Réel]],"",Tableau1[[#This Row],[Revenus des liv.]],"",Tableau1[[#This Row],[Essence SOS]],"",Tableau1[[#This Row],[Ajustements salariales]],"",Tableau1[[#This Row],[Commentaires]],"",Tableau1[[#This Row],[Année]],"",Tableau1[[#This Row],[mois]]) -> 2024-09-2419138,67156,673,0618,8902024septembre
B65: 59 | C65: 2024-09-25 | D65: 1 | E65: 07:00:00 | F65: 7 | G65: 11 | H65: 102.54 | I65: 115.8 | J65: 114.62 | K65: 13.97 | L65: 0 | N65: =YEAR(Tableau1[[#This Row],[Date]]) -> 2024 | O65: =TEXT(Tableau1[[#This Row],[Date]],"mmmm") -> septembre | P65: =DAY(Tableau1[[#This Row],[Date]]) -> 25 | Q65: =CONCATENATE(TEXT(Tableau1[[#This Row],[Date]],"aaaa-mm-jj"),"",Tableau1[[#This Row],[Jours travaillées]],"",Tableau1[[#This Row],[NBR de liv.]],"",Tableau1[[#This Row],[KM SOS]],"",Tableau1[[#This Row],[KM Réel]],"",Tableau1[[#This Row],[Revenus des liv.]],"",Tableau1[[#This Row],[Essence SOS]],"",Tableau1[[#This Row],[Ajustements salariales]],"",Tableau1[[#This Row],[Commentaires]],"",Tableau1[[#This Row],[Année]],"",Tableau1[[#This Row],[mois]]) -> 2024-09-25111102,54115,8114,6213,9702024septembre
B66: 60 | C66: 2024-09-26 | D66: 1 | E66: 02:00:00 | F66: 2 | G66: 2 | H66: 108.3 | I66: 122.3 | J66: 12.93 | K66: 14.75 | L66: 0 | N66: =YEAR(Tableau1[[#This Row],[Date]]) -> 2024 | O66: =TEXT(Tableau1[[#This Row],[Date]],"mmmm") -> septembre | P66: =DAY(Tableau1[[#This Row],[Date]]) -> 26 | Q66: =CONCATENATE(TEXT(Tableau1[[#This Row],[Date]],"aaaa-mm-jj"),"",Tableau1[[#This Row],[Jours travaillées]],"",Tableau1[[#This Row],[NBR de liv.]],"",Tableau1[[#This Row],[KM SOS]],"",Tableau1[[#This Row],[KM Réel]],"",Tableau1[[#This Row],[Revenus des liv.]],"",Tableau1[[#This Row],[Essence SOS]],"",Tableau1[[#This Row],[Ajustements salariales]],"",Tableau1[[#This Row],[Commentaires]],"",Tableau1[[#This Row],[Année]],"",Tableau1[[#This Row],[mois]]) -> 2024-09-2612108,3122,312,9314,7502024septembre
B67: =ROW(B67)-6 -> 61 | C67: 2024-09-30 | D67: 1 | E67: 07:00:00 | F67: 7 | G67: 14 | H67: 226.9 | I67: 205.4 | J67: 105.3 | K67: 30.9 | L67: 0 | N67: =YEAR(Tableau1[[#This Row],[Date]]) -> 2024 | O67: =TEXT(Tableau1[[#This Row],[Date]],"mmmm") -> septembre | P67: =DAY(Tableau1[[#This Row],[Date]]) -> 30 | Q67: =CONCATENATE(TEXT(Tableau1[[#This Row],[Date]],"aaaa-mm-jj"),"",Tableau1[[#This Row],[Jours travaillées]],"",Tableau1[[#This Row],[NBR de liv.]],"",Tableau1[[#This Row],[KM SOS]],"",Tableau1[[#This Row],[KM Réel]],"",Tableau1[[#This Row],[Revenus des liv.]],"",Tableau1[[#This Row],[Essence SOS]],"",Tableau1[[#This Row],[Ajustements salariales]],"",Tableau1[[#This Row],[Commentaires]],"",Tableau1[[#This Row],[Année]],"",Tableau1[[#This Row],[mois]]) -> 2024-09-30114226,9205,4105,330,902024septembre
B68: 62 | C68: 2024-10-01 | D68: 1 | E68: 07:00:00 | F68: 7 | G68: 10 | H68: 202.5 | I68: 186.8 | J68: 93.99 | K68: 27.58 | L68: 0 | N68: =YEAR(Tableau1[[#This Row],[Date]]) -> 2024 | O68: =TEXT(Tableau1[[#This Row],[Date]],"mmmm") -> octobre | P68: =DAY(Tableau1[[#This Row],[Date]]) -> 1 | Q68: =CONCATENATE(TEXT(Tableau1[[#This Row],[Date]],"aaaa-mm-jj"),"",Tableau1[[#This Row],[Jours travaillées]],"",Tableau1[[#This Row],[NBR de liv.]],"",Tableau1[[#This Row],[KM SOS]],"",Tableau1[[#This Row],[KM Réel]],"",Tableau1[[#This Row],[Revenus des liv.]],"",Tableau1[[#This Row],[Essence SOS]],"",Tableau1[[#This Row],[Ajustements salariales]],"",Tableau1[[#This Row],[Commentaires]],"",Tableau1[[#This Row],[Année]],"",Tableau1[[#This Row],[mois]]) -> 2024-10-01110202,5186,893,9927,5802024octobre
B69: 63 | C69: 2024-10-02 | D69: 1 | E69: 07:00:00 | F69: 7 | G69: 8 | H69: 177.6 | I69: 110.2 | J69: 82.42 | K69: 24.19 | L69: 0 | N69: =YEAR(Tableau1[[#This Row],[Date]]) -> 2024 | O69: =TEXT(Tableau1[[#This Row],[Date]],"mmmm") -> octobre | P69: =DAY(Tableau1[[#This Row],[Date]]) -> 2 | Q69: =CONCATENATE(TEXT(Tableau1[[#This Row],[Date]],"aaaa-mm-jj"),"",Tableau1[[#This Row],[Jours travaillées]],"",Tableau1[[#This Row],[NBR de liv.]],"",Tableau1[[#This Row],[KM SOS]],"",Tableau1[[#This Row],[KM Réel]],"",Tableau1[[#This Row],[Revenus des liv.]],"",Tableau1[[#This Row],[Essence SOS]],"",Tableau1[[#This Row],[Ajustements salariales]],"",Tableau1[[#This Row],[Commentaires]],"",Tableau1[[#This Row],[Année]],"",Tableau1[[#This Row],[mois]]) -> 2024-10-0218177,6110,282,4224,1902024octobre
B70: 64 | C70: 2024-10-03 | D70: 1 | E70: 07:00:00 | F70: 7 | G70: 5 | H70: 259 | I70: 265.5 | J70: 120.18 | K70: 35.27 | L70: 0 | N70: =YEAR(Tableau1[[#This Row],[Date]]) -> 2024 | O70: =TEXT(Tableau1[[#This Row],[Date]],"mmmm") -> octobre | P70: =DAY(Tableau1[[#This Row],[Date]]) -> 3 | Q70: =CONCATENATE(TEXT(Tableau1[[#This Row],[Date]],"aaaa-mm-jj"),"",Tableau1[[#This Row],[Jours travaillées]],"",Tableau1[[#This Row],[NBR de liv.]],"",Tableau1[[#This Row],[KM SOS]],"",Tableau1[[#This Row],[KM Réel]],"",Tableau1[[#This Row],[Revenus des liv.]],"",Tableau1[[#This Row],[Essence SOS]],"",Tableau1[[#This Row],[Ajustements salariales]],"",Tableau1[[#This Row],[Commentaires]],"",Tableau1[[#This Row],[Année]],"",Tableau1[[#This Row],[mois]]) -> 2024-10-0315259265,5120,1835,2702024octobre
B71: 65 | C71: 2024-10-07 | D71: 1 | E71: 03:30:00 | F71: 3.5 | G71: 4 | H71: 179.8 | I71: 167.9 | J71: 64.33 | K71: 22.28 | L71: 0 | N71: =YEAR(Tableau1[[#This Row],[Date]]) -> 2024 | O71: =TEXT(Tableau1[[#This Row],[Date]],"mmmm") -> octobre | P71: =DAY(Tableau1[[#This Row],[Date]]) -> 7 | Q71: =CONCATENATE(TEXT(Tableau1[[#This Row],[Date]],"aaaa-mm-jj"),"",Tableau1[[#This Row],[Jours travaillées]],"",Tableau1[[#This Row],[NBR de liv.]],"",Tableau1[[#This Row],[KM SOS]],"",Tableau1[[#This Row],[KM Réel]],"",Tableau1[[#This Row],[Revenus des liv.]],"",Tableau1[[#This Row],[Essence SOS]],"",Tableau1[[#This Row],[Ajustements salariales]],"",Tableau1[[#This Row],[Commentaires]],"",Tableau1[[#This Row],[Année]],"",Tableau1[[#This Row],[mois]]) -> 2024-10-0714179,8167,964,3322,2802024octobre
B72: 66 | C72: 2024-10-08 | D72: 1 | E72: 07:00:00 | F72: =IF(E72="","",(E72/"1:00")) -> 7 | G72: 15 | H72: 126.7 | I72: 118.3 | J72: 100.6 | K72: 15.7 | L72: 0 | N72: =YEAR(Tableau1[[#This Row],[Date]]) -> 2024 | O72: =TEXT(Tableau1[[#This Row],[Date]],"mmmm") -> octobre | P72: =DAY(Tableau1[[#This Row],[Date]]) -> 8 | Q72: =CONCATENATE(TEXT(Tableau1[[#This Row],[Date]],"aaaa-mm-jj"),"",Tableau1[[#This Row],[Jours travaillées]],"",Tableau1[[#This Row],[NBR de liv.]],"",Tableau1[[#This Row],[KM SOS]],"",Tableau1[[#This Row],[KM Réel]],"",Tableau1[[#This Row],[Revenus des liv.]],"",Tableau1[[#This Row],[Essence SOS]],"",Tableau1[[#This Row],[Ajustements salariales]],"",Tableau1[[#This Row],[Commentaires]],"",Tableau1[[#This Row],[Année]],"",Tableau1[[#This Row],[mois]]) -> 2024-10-08115126,7118,3100,615,702024octobre
B73: 67 | C73: 2024-10-09 | D73: 1 | E73: 07:00:00 | F73: 7 | G73: 9 | H73: 176.4 | I73: 164.7 | J73: 99.5 | K73: 21.86 | L73: 0 | N73: =YEAR(Tableau1[[#This Row],[Date]]) -> 2024 | O73: =TEXT(Tableau1[[#This Row],[Date]],"mmmm") -> octobre | P73: =DAY(Tableau1[[#This Row],[Date]]) -> 9 | Q73: =CONCATENATE(TEXT(Tableau1[[#This Row],[Date]],"aaaa-mm-jj"),"",Tableau1[[#This Row],[Jours travaillées]],"",Tableau1[[#This Row],[NBR de liv.]],"",Tableau1[[#This Row],[KM SOS]],"",Tableau1[[#This Row],[KM Réel]],"",Tableau1[[#This Row],[Revenus des liv.]],"",Tableau1[[#This Row],[Essence SOS]],"",Tableau1[[#This Row],[Ajustements salariales]],"",Tableau1[[#This Row],[Commentaires]],"",Tableau1[[#This Row],[Année]],"",Tableau1[[#This Row],[mois]]) -> 2024-10-0919176,4164,799,521,8602024octobre
B74: 68 | C74: 2024-10-10 | D74: 1 | E74: 07:00:00 | F74: 7 | G74: 7 | H74: 257.1 | I74: 240 | J74: 87.92 | K74: 31.85 | L74: 0 | N74: =YEAR(Tableau1[[#This Row],[Date]]) -> 2024 | O74: =TEXT(Tableau1[[#This Row],[Date]],"mmmm") -> octobre | P74: =DAY(Tableau1[[#This Row],[Date]]) -> 10 | Q74: =CONCATENATE(TEXT(Tableau1[[#This Row],[Date]],"aaaa-mm-jj"),"",Tableau1[[#This Row],[Jours travaillées]],"",Tableau1[[#This Row],[NBR de liv.]],"",Tableau1[[#This Row],[KM SOS]],"",Tableau1[[#This Row],[KM Réel]],"",Tableau1[[#This Row],[Revenus des liv.]],"",Tableau1[[#This Row],[Essence SOS]],"",Tableau1[[#This Row],[Ajustements salariales]],"",Tableau1[[#This Row],[Commentaires]],"",Tableau1[[#This Row],[Année]],"",Tableau1[[#This Row],[mois]]) -> 2024-10-1017257,124087,9231,8502024octobre
B75: 69 | C75: 2024-10-15 | D75: 1 | E75: 07:00:00 | F75: 7 | G75: 9 | H75: 272.4 | I75: 232 | J75: 153.86 | K75: 37.71 | L75: 0 | N75: =YEAR(Tableau1[[#This Row],[Date]]) -> 2024 | O75: =TEXT(Tableau1[[#This Row],[Date]],"mmmm") -> octobre | P75: =DAY(Tableau1[[#This Row],[Date]]) -> 15 | Q75: =CONCATENATE(TEXT(Tableau1[[#This Row],[Date]],"aaaa-mm-jj"),"",Tableau1[[#This Row],[Jours travaillées]],"",Tableau1[[#This Row],[NBR de liv.]],"",Tableau1[[#This Row],[KM SOS]],"",Tableau1[[#This Row],[KM Réel]],"",Tableau1[[#This Row],[Revenus des liv.]],"",Tableau1[[#This Row],[Essence SOS]],"",Tableau1[[#This Row],[Ajustements salariales]],"",Tableau1[[#This Row],[Commentaires]],"",Tableau1[[#This Row],[Année]],"",Tableau1[[#This Row],[mois]]) -> 2024-10-1519272,4232153,8637,7102024octobre
B76: 70 | C76: 2024-10-16 | D76: 1 | E76: 03:30:00 | F76: 3.5 | G76: 4 | H76: 152 | I76: 129.4 | J76: 49.43 | K76: 21.04 | L76: 0 | N76: =YEAR(Tableau1[[#This Row],[Date]]) -> 2024 | O76: =TEXT(Tableau1[[#This Row],[Date]],"mmmm") -> octobre | P76: =DAY(Tableau1[[#This Row],[Date]]) -> 16 | Q76: =CONCATENATE(TEXT(Tableau1[[#This Row],[Date]],"aaaa-mm-jj"),"",Tableau1[[#This Row],[Jours travaillées]],"",Tableau1[[#This Row],[NBR de liv.]],"",Tableau1[[#This Row],[KM SOS]],"",Tableau1[[#This Row],[KM Réel]],"",Tableau1[[#This Row],[Revenus des liv.]],"",Tableau1[[#This Row],[Essence SOS]],"",Tableau1[[#This Row],[Ajustements salariales]],"",Tableau1[[#This Row],[Commentaires]],"",Tableau1[[#This Row],[Année]],"",Tableau1[[#This Row],[mois]]) -> 2024-10-1614152129,449,4321,0402024octobre
B77: 71 | C77: 2024-10-17 | D77: 1 | E77: 07:00:00 | F77: 7 | G77: 5 | H77: 250.6 | I77: 213.4 | J77: 108.14 | K77: 34.69 | L77: 0 | N77: =YEAR(Tableau1[[#This Row],[Date]]) -> 2024 | O77: =TEXT(Tableau1[[#This Row],[Date]],"mmmm") -> octobre | P77: =DAY(Tableau1[[#This Row],[Date]]) -> 17 | Q77: =CONCATENATE(TEXT(Tableau1[[#This Row],[Date]],"aaaa-mm-jj"),"",Tableau1[[#This Row],[Jours travaillées]],"",Tableau1[[#This Row],[NBR de liv.]],"",Tableau1[[#This Row],[KM SOS]],"",Tableau1[[#This Row],[KM Réel]],"",Tableau1[[#This Row],[Revenus des liv.]],"",Tableau1[[#This Row],[Essence SOS]],"",Tableau1[[#This Row],[Ajustements salariales]],"",Tableau1[[#This Row],[Commentaires]],"",Tableau1[[#This Row],[Année]],"",Tableau1[[#This Row],[mois]]) -> 2024-10-1715250,6213,4108,1434,6902024octobre
B78: 72 | C78: 2024-10-21 | D78: 1 | E78: 07:00:00 | F78: 7 | G78: 10 | H78: 314.5 | I78: 193.9 | J78: 83.82 | K78: 38.59 | L78: 0 | N78: =YEAR(Tableau1[[#This Row],[Date]]) -> 2024 | O78: =TEXT(Tableau1[[#This Row],[Date]],"mmmm") -> octobre | P78: =DAY(Tableau1[[#This Row],[Date]]) -> 21 | Q78: =CONCATENATE(TEXT(Tableau1[[#This Row],[Date]],"aaaa-mm-jj"),"",Tableau1[[#This Row],[Jours travaillées]],"",Tableau1[[#This Row],[NBR de liv.]],"",Tableau1[[#This Row],[KM SOS]],"",Tableau1[[#This Row],[KM Réel]],"",Tableau1[[#This Row],[Revenus des liv.]],"",Tableau1[[#This Row],[Essence SOS]],"",Tableau1[[#This Row],[Ajustements salariales]],"",Tableau1[[#This Row],[Commentaires]],"",Tableau1[[#This Row],[Année]],"",Tableau1[[#This Row],[mois]]) -> 2024-10-21110314,5193,983,8238,5902024octobre
B79: 73 | C79: 2024-10-22 | D79: 1 | E79: 07:00:00 | F79: 7 | G79: 14 | H79: 175.8 | I79: 108.4 | J79: 147.77 | K79: 21.58 | L79: 0 | N79: =YEAR(Tableau1[[#This Row],[Date]]) -> 2024 | O79: =TEXT(Tableau1[[#This Row],[Date]],"mmmm") -> octobre | P79: =DAY(Tableau1[[#This Row],[Date]]) -> 22 | Q79: =CONCATENATE(TEXT(Tableau1[[#This Row],[Date]],"aaaa-mm-jj"),"",Tableau1[[#This Row],[Jours travaillées]],"",Tableau1[[#This Row],[NBR de liv.]],"",Tableau1[[#This Row],[KM SOS]],"",Tableau1[[#This Row],[KM Réel]],"",Tableau1[[#This Row],[Revenus des liv.]],"",Tableau1[[#This Row],[Essence SOS]],"",Tableau1[[#This Row],[Ajustements salariales]],"",Tableau1[[#This Row],[Commentaires]],"",Tableau1[[#This Row],[Année]],"",Tableau1[[#This Row],[mois]]) -> 2024-10-22114175,8108,4147,7721,5802024octobre
B80: 74 | C80: 2024-10-23 | D80: 1 | E80: 07:00:00 | F80: 7 | G80: 12 | H80: 180.2 | I80: 111.1 | J80: 95.63 | K80: 22.11 | L80: 0 | N80: =YEAR(Tableau1[[#This Row],[Date]]) -> 2024 | O80: =TEXT(Tableau1[[#This Row],[Date]],"mmmm") -> octobre | P80: =DAY(Tableau1[[#This Row],[Date]]) -> 23 | Q80: =CONCATENATE(TEXT(Tableau1[[#This Row],[Date]],"aaaa-mm-jj"),"",Tableau1[[#This Row],[Jours travaillées]],"",Tableau1[[#This Row],[NBR de liv.]],"",Tableau1[[#This Row],[KM SOS]],"",Tableau1[[#This Row],[KM Réel]],"",Tableau1[[#This Row],[Revenus des liv.]],"",Tableau1[[#This Row],[Essence SOS]],"",Tableau1[[#This Row],[Ajustements salariales]],"",Tableau1[[#This Row],[Commentaires]],"",Tableau1[[#This Row],[Année]],"",Tableau1[[#This Row],[mois]]) -> 2024-10-23112180,2111,195,6322,1102024octobre
B81: 75 | C81: 2024-10-24 | D81: 1 | E81: 07:00:00 | F81: 7 | G81: 9 | H81: 208.4 | I81: 128.5 | J81: 92.47 | K81: 25.58 | L81: 0 | N81: =YEAR(Tableau1[[#This Row],[Date]]) -> 2024 | O81: =TEXT(Tableau1[[#This Row],[Date]],"mmmm") -> octobre | P81: =DAY(Tableau1[[#This Row],[Date]]) -> 24 | Q81: =CONCATENATE(TEXT(Tableau1[[#This Row],[Date]],"aaaa-mm-jj"),"",Tableau1[[#This Row],[Jours travaillées]],"",Tableau1[[#This Row],[NBR de liv.]],"",Tableau1[[#This Row],[KM SOS]],"",Tableau1[[#This Row],[KM Réel]],"",Tableau1[[#This Row],[Revenus des liv.]],"",Tableau1[[#This Row],[Essence SOS]],"",Tableau1[[#This Row],[Ajustements salariales]],"",Tableau1[[#This Row],[Commentaires]],"",Tableau1[[#This Row],[Année]],"",Tableau1[[#This Row],[mois]]) -> 2024-10-2419208,4128,592,4725,5802024octobre
B82: 76 | C82: 2024-10-28 | D82: 1 | E82: 07:35:00 | F82: 7.583333333 | G82: 8 | H82: 198.2 | I82: 237.4 | J82: 110.83 | K82: 27.46 | L82: 0 | N82: =YEAR(Tableau1[[#This Row],[Date]]) -> 2024 | O82: =TEXT(Tableau1[[#This Row],[Date]],"mmmm") -> octobre | P82: =DAY(Tableau1[[#This Row],[Date]]) -> 28 | Q82: =CONCATENATE(TEXT(Tableau1[[#This Row],[Date]],"aaaa-mm-jj"),"",Tableau1[[#This Row],[Jours travaillées]],"",Tableau1[[#This Row],[NBR de liv.]],"",Tableau1[[#This Row],[KM SOS]],"",Tableau1[[#This Row],[KM Réel]],"",Tableau1[[#This Row],[Revenus des liv.]],"",Tableau1[[#This Row],[Essence SOS]],"",Tableau1[[#This Row],[Ajustements salariales]],"",Tableau1[[#This Row],[Commentaires]],"",Tableau1[[#This Row],[Année]],"",Tableau1[[#This Row],[mois]]) -> 2024-10-2818198,2237,4110,8327,4602024octobre
B83: 77 | C83: 2024-10-29 | D83: 1 | E83: 08:00:00 | F83: 8 | G83: 9 | H83: 210.7 | I83: 252.4 | J83: 80.71 | K83: 29.2 | L83: 0 | N83: =YEAR(Tableau1[[#This Row],[Date]]) -> 2024 | O83: =TEXT(Tableau1[[#This Row],[Date]],"mmmm") -> octobre | P83: =DAY(Tableau1[[#This Row],[Date]]) -> 29 | Q83: =CONCATENATE(TEXT(Tableau1[[#This Row],[Date]],"aaaa-mm-jj"),"",Tableau1[[#This Row],[Jours travaillées]],"",Tableau1[[#This Row],[NBR de liv.]],"",Tableau1[[#This Row],[KM SOS]],"",Tableau1[[#This Row],[KM Réel]],"",Tableau1[[#This Row],[Revenus des liv.]],"",Tableau1[[#This Row],[Essence SOS]],"",Tableau1[[#This Row],[Ajustements salariales]],"",Tableau1[[#This Row],[Commentaires]],"",Tableau1[[#This Row],[Année]],"",Tableau1[[#This Row],[mois]]) -> 2024-10-2919210,7252,480,7129,202024octobre
B84: 78 | C84: 2024-10-30 | D84: 1 | E84: 08:00:00 | F84: 8 | G84: 5 | H84: 290.8 | I84: 348.3 | J84: 122.2 | K84: 40.29 | L84: 0 | N84: =YEAR(Tableau1[[#This Row],[Date]]) -> 2024 | O84: =TEXT(Tableau1[[#This Row],[Date]],"mmmm") -> octobre | P84: =DAY(Tableau1[[#This Row],[Date]]) -> 30 | Q84: =CONCATENATE(TEXT(Tableau1[[#This Row],[Date]],"aaaa-mm-jj"),"",Tableau1[[#This Row],[Jours travaillées]],"",Tableau1[[#This Row],[NBR de liv.]],"",Tableau1[[#This Row],[KM SOS]],"",Tableau1[[#This Row],[KM Réel]],"",Tableau1[[#This Row],[Revenus des liv.]],"",Tableau1[[#This Row],[Essence SOS]],"",Tableau1[[#This Row],[Ajustements salariales]],"",Tableau1[[#This Row],[Commentaires]],"",Tableau1[[#This Row],[Année]],"",Tableau1[[#This Row],[mois]]) -> 2024-10-3015290,8348,3122,240,2902024octobre
B85: 79 | C85: 2024-10-31 | D85: 1 | E85: 08:35:00 | F85: 8.583333333 | G85: 8 | H85: 153.2 | I85: 183.5 | J85: 80.1 | K85: 21.23 | L85: 0 | N85: =YEAR(Tableau1[[#This Row],[Date]]) -> 2024 | O85: =TEXT(Tableau1[[#This Row],[Date]],"mmmm") -> octobre | P85: =DAY(Tableau1[[#This Row],[Date]]) -> 31 | Q85: =CONCATENATE(TEXT(Tableau1[[#This Row],[Date]],"aaaa-mm-jj"),"",Tableau1[[#This Row],[Jours travaillées]],"",Tableau1[[#This Row],[NBR de liv.]],"",Tableau1[[#This Row],[KM SOS]],"",Tableau1[[#This Row],[KM Réel]],"",Tableau1[[#This Row],[Revenus des liv.]],"",Tableau1[[#This Row],[Essence SOS]],"",Tableau1[[#This Row],[Ajustements salariales]],"",Tableau1[[#This Row],[Commentaires]],"",Tableau1[[#This Row],[Année]],"",Tableau1[[#This Row],[mois]]) -> 2024-10-3118153,2183,580,121,2302024octobre
B86: 80 | C86: 2024-11-04 | D86: 1 | E86: 08:00:00 | F86: 8 | G86: 11 | H86: 276.9 | I86: 233.5 | J86: 90.47 | K86: 37.08 | L86: 0 | N86: =YEAR(Tableau1[[#This Row],[Date]]) -> 2024 | O86: =TEXT(Tableau1[[#This Row],[Date]],"mmmm") -> novembre | P86: =DAY(Tableau1[[#This Row],[Date]]) -> 4 | Q86: =CONCATENATE(TEXT(Tableau1[[#This Row],[Date]],"aaaa-mm-jj"),"",Tableau1[[#This Row],[Jours travaillées]],"",Tableau1[[#This Row],[NBR de liv.]],"",Tableau1[[#This Row],[KM SOS]],"",Tableau1[[#This Row],[KM Réel]],"",Tableau1[[#This Row],[Revenus des liv.]],"",Tableau1[[#This Row],[Essence SOS]],"",Tableau1[[#This Row],[Ajustements salariales]],"",Tableau1[[#This Row],[Commentaires]],"",Tableau1[[#This Row],[Année]],"",Tableau1[[#This Row],[mois]]) -> 2024-11-04111276,9233,590,4737,0802024novembre
B87: 81 | C87: 2024-11-05 | D87: 1 | E87: 06:30:00 | F87: 6.5 | G87: 6 | H87: 147.8 | I87: 124.6 | J87: 75.63 | K87: 19.79 | L87: 0 | N87: =YEAR(Tableau1[[#This Row],[Date]]) -> 2024 | O87: =TEXT(Tableau1[[#This Row],[Date]],"mmmm") -> novembre | P87: =DAY(Tableau1[[#This Row],[Date]]) -> 5 | Q87: =CONCATENATE(TEXT(Tableau1[[#This Row],[Date]],"aaaa-mm-jj"),"",Tableau1[[#This Row],[Jours travaillées]],"",Tableau1[[#This Row],[NBR de liv.]],"",Tableau1[[#This Row],[KM SOS]],"",Tableau1[[#This Row],[KM Réel]],"",Tableau1[[#This Row],[Revenus des liv.]],"",Tableau1[[#This Row],[Essence SOS]],"",Tableau1[[#This Row],[Ajustements salariales]],"",Tableau1[[#This Row],[Commentaires]],"",Tableau1[[#This Row],[Année]],"",Tableau1[[#This Row],[mois]]) -> 2024-11-0516147,8124,675,6319,7902024novembre
B88: 82 | C88: 2024-11-06 | D88: 1 | E88: 06:50:00 | F88: 6.833333333 | G88: 12 | H88: 203.5 | I88: 171.6 | J88: 115.13 | K88: 27.25 | L88: 0 | N88: =YEAR(Tableau1[[#This Row],[Date]]) -> 2024 | O88: =TEXT(Tableau1[[#This Row],[Date]],"mmmm") -> novembre | P88: =DAY(Tableau1[[#This Row],[Date]]) -> 6 | Q88: =CONCATENATE(TEXT(Tableau1[[#This Row],[Date]],"aaaa-mm-jj"),"",Tableau1[[#This Row],[Jours travaillées]],"",Tableau1[[#This Row],[NBR de liv.]],"",Tableau1[[#This Row],[KM SOS]],"",Tableau1[[#This Row],[KM Réel]],"",Tableau1[[#This Row],[Revenus des liv.]],"",Tableau1[[#This Row],[Essence SOS]],"",Tableau1[[#This Row],[Ajustements salariales]],"",Tableau1[[#This Row],[Commentaires]],"",Tableau1[[#This Row],[Année]],"",Tableau1[[#This Row],[mois]]) -> 2024-11-06112203,5171,6115,1327,2502024novembre
B89: 83 | C89: 2024-11-07 | D89: 1 | E89: 08:20:00 | F89: 8.333333333 | G89: 11 | H89: 247.8 | I89: 209 | J89: 127.11 | K89: 33.19 | L89: 0 | N89: =YEAR(Tableau1[[#This Row],[Date]]) -> 2024 | O89: =TEXT(Tableau1[[#This Row],[Date]],"mmmm") -> novembre | P89: =DAY(Tableau1[[#This Row],[Date]]) -> 7 | Q89: =CONCATENATE(TEXT(Tableau1[[#This Row],[Date]],"aaaa-mm-jj"),"",Tableau1[[#This Row],[Jours travaillées]],"",Tableau1[[#This Row],[NBR de liv.]],"",Tableau1[[#This Row],[KM SOS]],"",Tableau1[[#This Row],[KM Réel]],"",Tableau1[[#This Row],[Revenus des liv.]],"",Tableau1[[#This Row],[Essence SOS]],"",Tableau1[[#This Row],[Ajustements salariales]],"",Tableau1[[#This Row],[Commentaires]],"",Tableau1[[#This Row],[Année]],"",Tableau1[[#This Row],[mois]]) -> 2024-11-07111247,8209127,1133,1902024novembre
B90: 84 | C90: 2024-11-11 | D90: 1 | E90: 06:05:00 | F90: 6.083333333 | G90: 4 | H90: 265.4 | I90: 236.5 | J90: 100.07 | K90: 32.53 | L90: 0 | N90: =YEAR(Tableau1[[#This Row],[Date]]) -> 2024 | O90: =TEXT(Tableau1[[#This Row],[Date]],"mmmm") -> novembre | P90: =DAY(Tableau1[[#This Row],[Date]]) -> 11 | Q90: =CONCATENATE(TEXT(Tableau1[[#This Row],[Date]],"aaaa-mm-jj"),"",Tableau1[[#This Row],[Jours travaillées]],"",Tableau1[[#This Row],[NBR de liv.]],"",Tableau1[[#This Row],[KM SOS]],"",Tableau1[[#This Row],[KM Réel]],"",Tableau1[[#This Row],[Revenus des liv.]],"",Tableau1[[#This Row],[Essence SOS]],"",Tableau1[[#This Row],[Ajustements salariales]],"",Tableau1[[#This Row],[Commentaires]],"",Tableau1[[#This Row],[Année]],"",Tableau1[[#This Row],[mois]]) -> 2024-11-1114265,4236,5100,0732,5302024novembre
B91: 85 | C91: 2024-11-12 | D91: 1 | E91: 07:04:00 | F91: 7.066666667 | G91: 10 | H91: 201.7 | I91: 179.7 | J91: 85.22 | K91: 24.72 | L91: 0 | N91: =YEAR(Tableau1[[#This Row],[Date]]) -> 2024 | O91: =TEXT(Tableau1[[#This Row],[Date]],"mmmm") -> novembre | P91: =DAY(Tableau1[[#This Row],[Date]]) -> 12 | Q91: =CONCATENATE(TEXT(Tableau1[[#This Row],[Date]],"aaaa-mm-jj"),"",Tableau1[[#This Row],[Jours travaillées]],"",Tableau1[[#This Row],[NBR de liv.]],"",Tableau1[[#This Row],[KM SOS]],"",Tableau1[[#This Row],[KM Réel]],"",Tableau1[[#This Row],[Revenus des liv.]],"",Tableau1[[#This Row],[Essence SOS]],"",Tableau1[[#This Row],[Ajustements salariales]],"",Tableau1[[#This Row],[Commentaires]],"",Tableau1[[#This Row],[Année]],"",Tableau1[[#This Row],[mois]]) -> 2024-11-12110201,7179,785,2224,7202024novembre
B92: 86 | C92: 2024-11-13 | D92: 1 | E92: 06:00:00 | F92: 6 | G92: 6 | H92: 128.3 | I92: 114.3 | J92: 85.3 | K92: 15.72 | L92: 0 | N92: =YEAR(Tableau1[[#This Row],[Date]]) -> 2024 | O92: =TEXT(Tableau1[[#This Row],[Date]],"mmmm") -> novembre | P92: =DAY(Tableau1[[#This Row],[Date]]) -> 13 | Q92: =CONCATENATE(TEXT(Tableau1[[#This Row],[Date]],"aaaa-mm-jj"),"",Tableau1[[#This Row],[Jours travaillées]],"",Tableau1[[#This Row],[NBR de liv.]],"",Tableau1[[#This Row],[KM SOS]],"",Tableau1[[#This Row],[KM Réel]],"",Tableau1[[#This Row],[Revenus des liv.]],"",Tableau1[[#This Row],[Essence SOS]],"",Tableau1[[#This Row],[Ajustements salariales]],"",Tableau1[[#This Row],[Commentaires]],"",Tableau1[[#This Row],[Année]],"",Tableau1[[#This Row],[mois]]) -> 2024-11-1316128,3114,385,315,7202024novembre
B93: 87 | C93: 2024-11-14 | D93: 1 | E93: 07:00:00 | F93: 7 | G93: 9 | H93: 159.6 | I93: 142.2 | J93: 77.39 | K93: 19.56 | L93: 0 | N93: =YEAR(Tableau1[[#This Row],[Date]]) -> 2024 | O93: =TEXT(Tableau1[[#This Row],[Date]],"mmmm") -> novembre | P93: =DAY(Tableau1[[#This Row],[Date]]) -> 14 | Q93: =CONCATENATE(TEXT(Tableau1[[#This Row],[Date]],"aaaa-mm-jj"),"",Tableau1[[#This Row],[Jours travaillées]],"",Tableau1[[#This Row],[NBR de liv.]],"",Tableau1[[#This Row],[KM SOS]],"",Tableau1[[#This Row],[KM Réel]],"",Tableau1[[#This Row],[Revenus des liv.]],"",Tableau1[[#This Row],[Essence SOS]],"",Tableau1[[#This Row],[Ajustements salariales]],"",Tableau1[[#This Row],[Commentaires]],"",Tableau1[[#This Row],[Année]],"",Tableau1[[#This Row],[mois]]) -> 2024-11-1419159,6142,277,3919,5602024novembre
B94: 88 | C94: 2024-11-18 | D94: 1 | E94: 07:45:00 | F94: 7.75 | G94: 11 | H94: 245.1 | I94: 180.2 | J94: 105.17 | K94: 28.65 | L94: 0 | N94: =YEAR(Tableau1[[#This Row],[Date]]) -> 2024 | O94: =TEXT(Tableau1[[#This Row],[Date]],"mmmm") -> novembre | P94: =DAY(Tableau1[[#This Row],[Date]]) -> 18 | Q94: =CONCATENATE(TEXT(Tableau1[[#This Row],[Date]],"aaaa-mm-jj"),"",Tableau1[[#This Row],[Jours travaillées]],"",Tableau1[[#This Row],[NBR de liv.]],"",Tableau1[[#This Row],[KM SOS]],"",Tableau1[[#This Row],[KM Réel]],"",Tableau1[[#This Row],[Revenus des liv.]],"",Tableau1[[#This Row],[Essence SOS]],"",Tableau1[[#This Row],[Ajustements salariales]],"",Tableau1[[#This Row],[Commentaires]],"",Tableau1[[#This Row],[Année]],"",Tableau1[[#This Row],[mois]]) -> 2024-11-18111245,1180,2105,1728,6502024novembre
B95: 89 | C95: 2024-11-19 | D95: 1 | E95: 08:25:00 | F95: 8.416666667 | G95: 15 | H95: 273.8 | I95: 201.3 | J95: 117.25 | K95: 32.01 | L95: 0 | N95: =YEAR(Tableau1[[#This Row],[Date]]) -> 2024 | O95: =TEXT(Tableau1[[#This Row],[Date]],"mmmm") -> novembre | P95: =DAY(Tableau1[[#This Row],[Date]]) -> 19 | Q95: =CONCATENATE(TEXT(Tableau1[[#This Row],[Date]],"aaaa-mm-jj"),"",Tableau1[[#This Row],[Jours travaillées]],"",Tableau1[[#This Row],[NBR de liv.]],"",Tableau1[[#This Row],[KM SOS]],"",Tableau1[[#This Row],[KM Réel]],"",Tableau1[[#This Row],[Revenus des liv.]],"",Tableau1[[#This Row],[Essence SOS]],"",Tableau1[[#This Row],[Ajustements salariales]],"",Tableau1[[#This Row],[Commentaires]],"",Tableau1[[#This Row],[Année]],"",Tableau1[[#This Row],[mois]]) -> 2024-11-19115273,8201,3117,2532,0102024novembre
B96: 90 | C96: 2024-11-20 | D96: 1 | E96: 07:30:00 | F96: 7.5 | G96: 9 | H96: 224 | I96: 164.7 | J96: 129.9 | K96: 26.19 | L96: 0 | N96: =YEAR(Tableau1[[#This Row],[Date]]) -> 2024 | O96: =TEXT(Tableau1[[#This Row],[Date]],"mmmm") -> novembre | P96: =DAY(Tableau1[[#This Row],[Date]]) -> 20 | Q96: =CONCATENATE(TEXT(Tableau1[[#This Row],[Date]],"aaaa-mm-jj"),"",Tableau1[[#This Row],[Jours travaillées]],"",Tableau1[[#This Row],[NBR de liv.]],"",Tableau1[[#This Row],[KM SOS]],"",Tableau1[[#This Row],[KM Réel]],"",Tableau1[[#This Row],[Revenus des liv.]],"",Tableau1[[#This Row],[Essence SOS]],"",Tableau1[[#This Row],[Ajustements salariales]],"",Tableau1[[#This Row],[Commentaires]],"",Tableau1[[#This Row],[Année]],"",Tableau1[[#This Row],[mois]]) -> 2024-11-2019224164,7129,926,1902024novembre
B97: 91 | C97: 2024-11-21 | D97: 1 | E97: 07:00:00 | F97: 7 | G97: 12 | H97: 146.1 | I97: 107.4 | J97: 76.87 | K97: 17.08 | L97: 0 | N97: =YEAR(Tableau1[[#This Row],[Date]]) -> 2024 | O97: =TEXT(Tableau1[[#This Row],[Date]],"mmmm") -> novembre | P97: =DAY(Tableau1[[#This Row],[Date]]) -> 21 | Q97: =CONCATENATE(TEXT(Tableau1[[#This Row],[Date]],"aaaa-mm-jj"),"",Tableau1[[#This Row],[Jours travaillées]],"",Tableau1[[#This Row],[NBR de liv.]],"",Tableau1[[#This Row],[KM SOS]],"",Tableau1[[#This Row],[KM Réel]],"",Tableau1[[#This Row],[Revenus des liv.]],"",Tableau1[[#This Row],[Essence SOS]],"",Tableau1[[#This Row],[Ajustements salariales]],"",Tableau1[[#This Row],[Commentaires]],"",Tableau1[[#This Row],[Année]],"",Tableau1[[#This Row],[mois]]) -> 2024-11-21112146,1107,476,8717,0802024novembre
B98: 92 | C98: 2024-11-25 | D98: 1 | E98: 07:25:00 | F98: 7.416666667 | G98: 7 | H98: 260.1 | I98: 235.7 | J98: 93.33 | K98: 34.33 | L98: 0 | N98: =YEAR(Tableau1[[#This Row],[Date]]) -> 2024 | O98: =TEXT(Tableau1[[#This Row],[Date]],"mmmm") -> novembre | P98: =DAY(Tableau1[[#This Row],[Date]]) -> 25 | Q98: =CONCATENATE(TEXT(Tableau1[[#This Row],[Date]],"aaaa-mm-jj"),"",Tableau1[[#This Row],[Jours travaillées]],"",Tableau1[[#This Row],[NBR de liv.]],"",Tableau1[[#This Row],[KM SOS]],"",Tableau1[[#This Row],[KM Réel]],"",Tableau1[[#This Row],[Revenus des liv.]],"",Tableau1[[#This Row],[Essence SOS]],"",Tableau1[[#This Row],[Ajustements salariales]],"",Tableau1[[#This Row],[Commentaires]],"",Tableau1[[#This Row],[Année]],"",Tableau1[[#This Row],[mois]]) -> 2024-11-2517260,1235,793,3334,3302024novembre
B99: =ROW(B99)-6 -> 93 | C99: 2024-11-26 | D99: 1 | E99: 07:40:00 | F99: 7.666666667 | G99: 10 | H99: 249.9 | I99: 226.4 | J99: 118.37 | K99: 32.97 | L99: 0 | N99: =YEAR(Tableau1[[#This Row],[Date]]) -> 2024 | O99: =TEXT(Tableau1[[#This Row],[Date]],"mmmm") -> novembre | P99: =DAY(Tableau1[[#This Row],[Date]]) -> 26 | Q99: =CONCATENATE(TEXT(Tableau1[[#This Row],[Date]],"aaaa-mm-jj"),"",Tableau1[[#This Row],[Jours travaillées]],"",Tableau1[[#This Row],[NBR de liv.]],"",Tableau1[[#This Row],[KM SOS]],"",Tableau1[[#This Row],[KM Réel]],"",Tableau1[[#This Row],[Revenus des liv.]],"",Tableau1[[#This Row],[Essence SOS]],"",Tableau1[[#This Row],[Ajustements salariales]],"",Tableau1[[#This Row],[Commentaires]],"",Tableau1[[#This Row],[Année]],"",Tableau1[[#This Row],[mois]]) -> 2024-11-26110249,9226,4118,3732,9702024novembre
B100: 94 | C100: 2024-11-27 | D100: 1 | E100: 08:20:00 | F100: 8.333333333 | G100: 11 | H100: 151.2 | I100: 137 | J100: 106.56 | K100: 19.95 | L100: 0 | N100: =YEAR(Tableau1[[#This Row],[Date]]) -> 2024 | O100: =TEXT(Tableau1[[#This Row],[Date]],"mmmm") -> novembre | P100: =DAY(Tableau1[[#This Row],[Date]]) -> 27 | Q100: =CONCATENATE(TEXT(Tableau1[[#This Row],[Date]],"aaaa-mm-jj"),"",Tableau1[[#This Row],[Jours travaillées]],"",Tableau1[[#This Row],[NBR de liv.]],"",Tableau1[[#This Row],[KM SOS]],"",Tableau1[[#This Row],[KM Réel]],"",Tableau1[[#This Row],[Revenus des liv.]],"",Tableau1[[#This Row],[Essence SOS]],"",Tableau1[[#This Row],[Ajustements salariales]],"",Tableau1[[#This Row],[Commentaires]],"",Tableau1[[#This Row],[Année]],"",Tableau1[[#This Row],[mois]]) -> 2024-11-27111151,2137106,5619,9502024novembre
B101: 95 | C101: 2024-11-28 | D101: 1 | E101: 08:00:00 | F101: 8 | G101: 7 | H101: 227.8 | I101: 206.4 | J101: 113.8 | K101: 30.06 | L101: 0 | N101: =YEAR(Tableau1[[#This Row],[Date]]) -> 2024 | O101: =TEXT(Tableau1[[#This Row],[Date]],"mmmm") -> novembre | P101: =DAY(Tableau1[[#This Row],[Date]]) -> 28 | Q101: =CONCATENATE(TEXT(Tableau1[[#This Row],[Date]],"aaaa-mm-jj"),"",Tableau1[[#This Row],[Jours travaillées]],"",Tableau1[[#This Row],[NBR de liv.]],"",Tableau1[[#This Row],[KM SOS]],"",Tableau1[[#This Row],[KM Réel]],"",Tableau1[[#This Row],[Revenus des liv.]],"",Tableau1[[#This Row],[Essence SOS]],"",Tableau1[[#This Row],[Ajustements salariales]],"",Tableau1[[#This Row],[Commentaires]],"",Tableau1[[#This Row],[Année]],"",Tableau1[[#This Row],[mois]]) -> 2024-11-2817227,8206,4113,830,0602024novembre
B102: 96 | C102: 2024-12-02 | D102: 1 | E102: 09:30:00 | F102: 9.5 | G102: 9 | H102: 363.5 | I102: 330.4 | J102: 125.55 | K102: 45.83 | L102: 0 | N102: =YEAR(Tableau1[[#This Row],[Date]]) -> 2024 | O102: =TEXT(Tableau1[[#This Row],[Date]],"mmmm") -> décembre | P102: =DAY(Tableau1[[#This Row],[Date]]) -> 2 | Q102: =CONCATENATE(TEXT(Tableau1[[#This Row],[Date]],"aaaa-mm-jj"),"",Tableau1[[#This Row],[Jours travaillées]],"",Tableau1[[#This Row],[NBR de liv.]],"",Tableau1[[#This Row],[KM SOS]],"",Tableau1[[#This Row],[KM Réel]],"",Tableau1[[#This Row],[Revenus des liv.]],"",Tableau1[[#This Row],[Essence SOS]],"",Tableau1[[#This Row],[Ajustements salariales]],"",Tableau1[[#This Row],[Commentaires]],"",Tableau1[[#This Row],[Année]],"",Tableau1[[#This Row],[mois]]) -> 2024-12-0219363,5330,4125,5545,8302024décembre
B103: 97 | C103: 2024-12-03 | D103: 1 | E103: 08:20:00 | F103: 8.333333333 | G103: 7 | H103: 313.3 | I103: 284.8 | J103: 220.39 | K103: 39.5 | L103: 0 | N103: =YEAR(Tableau1[[#This Row],[Date]]) -> 2024 | O103: =TEXT(Tableau1[[#This Row],[Date]],"mmmm") -> décembre | P103: =DAY(Tableau1[[#This Row],[Date]]) -> 3 | Q103: =CONCATENATE(TEXT(Tableau1[[#This Row],[Date]],"aaaa-mm-jj"),"",Tableau1[[#This Row],[Jours travaillées]],"",Tableau1[[#This Row],[NBR de liv.]],"",Tableau1[[#This Row],[KM SOS]],"",Tableau1[[#This Row],[KM Réel]],"",Tableau1[[#This Row],[Revenus des liv.]],"",Tableau1[[#This Row],[Essence SOS]],"",Tableau1[[#This Row],[Ajustements salariales]],"",Tableau1[[#This Row],[Commentaires]],"",Tableau1[[#This Row],[Année]],"",Tableau1[[#This Row],[mois]]) -> 2024-12-0317313,3284,8220,3939,502024décembre
B104: 98 | C104: 2024-12-04 | D104: 1 | E104: 07:35:00 | F104: 7.583333333 | G104: 7 | H104: 174.5 | I104: 158.6 | J104: 82.41 | K104: 22 | L104: 0 | N104: =YEAR(Tableau1[[#This Row],[Date]]) -> 2024 | O104: =TEXT(Tableau1[[#This Row],[Date]],"mmmm") -> décembre | P104: =DAY(Tableau1[[#This Row],[Date]]) -> 4 | Q104: =CONCATENATE(TEXT(Tableau1[[#This Row],[Date]],"aaaa-mm-jj"),"",Tableau1[[#This Row],[Jours travaillées]],"",Tableau1[[#This Row],[NBR de liv.]],"",Tableau1[[#This Row],[KM SOS]],"",Tableau1[[#This Row],[KM Réel]],"",Tableau1[[#This Row],[Revenus des liv.]],"",Tableau1[[#This Row],[Essence SOS]],"",Tableau1[[#This Row],[Ajustements salariales]],"",Tableau1[[#This Row],[Commentaires]],"",Tableau1[[#This Row],[Année]],"",Tableau1[[#This Row],[mois]]) -> 2024-12-0417174,5158,682,412202024décembre
B105: 99 | C105: 2024-12-05 | D105: 1 | E105: 08:15:00 | F105: 8.25 | G105: 9 | H105: 182.1 | I105: 165.5 | J105: 70.37 | K105: 22.96 | L105: 0 | N105: =YEAR(Tableau1[[#This Row],[Date]]) -> 2024 | O105: =TEXT(Tableau1[[#This Row],[Date]],"mmmm") -> décembre | P105: =DAY(Tableau1[[#This Row],[Date]]) -> 5 | Q105: =CONCATENATE(TEXT(Tableau1[[#This Row],[Date]],"aaaa-mm-jj"),"",Tableau1[[#This Row],[Jours travaillées]],"",Tableau1[[#This Row],[NBR de liv.]],"",Tableau1[[#This Row],[KM SOS]],"",Tableau1[[#This Row],[KM Réel]],"",Tableau1[[#This Row],[Revenus des liv.]],"",Tableau1[[#This Row],[Essence SOS]],"",Tableau1[[#This Row],[Ajustements salariales]],"",Tableau1[[#This Row],[Commentaires]],"",Tableau1[[#This Row],[Année]],"",Tableau1[[#This Row],[mois]]) -> 2024-12-0519182,1165,570,3722,9602024décembre
B106: 100 | C106: 2024-12-09 | D106: 1 | E106: 08:10:00 | F106: 8.166666667 | G106: 13 | H106: 266 | I106: 232.1 | J106: 114.77 | K106: 36.83 | L106: 0 | N106: =YEAR(Tableau1[[#This Row],[Date]]) -> 2024 | O106: =TEXT(Tableau1[[#This Row],[Date]],"mmmm") -> décembre | P106: =DAY(Tableau1[[#This Row],[Date]]) -> 9 | Q106: =CONCATENATE(TEXT(Tableau1[[#This Row],[Date]],"aaaa-mm-jj"),"",Tableau1[[#This Row],[Jours travaillées]],"",Tableau1[[#This Row],[NBR de liv.]],"",Tableau1[[#This Row],[KM SOS]],"",Tableau1[[#This Row],[KM Réel]],"",Tableau1[[#This Row],[Revenus des liv.]],"",Tableau1[[#This Row],[Essence SOS]],"",Tableau1[[#This Row],[Ajustements salariales]],"",Tableau1[[#This Row],[Commentaires]],"",Tableau1[[#This Row],[Année]],"",Tableau1[[#This Row],[mois]]) -> 2024-12-09113266232,1114,7736,8302024décembre
B107: 101 | C107: 2024-12-11 | D107: 1 | E107: 08:45:00 | F107: 8.75 | G107: 4 | H107: 214.4 | I107: 187.1 | J107: 76.4 | K107: 29.69 | L107: 0 | N107: =YEAR(Tableau1[[#This Row],[Date]]) -> 2024 | O107: =TEXT(Tableau1[[#This Row],[Date]],"mmmm") -> décembre | P107: =DAY(Tableau1[[#This Row],[Date]]) -> 11 | Q107: =CONCATENATE(TEXT(Tableau1[[#This Row],[Date]],"aaaa-mm-jj"),"",Tableau1[[#This Row],[Jours travaillées]],"",Tableau1[[#This Row],[NBR de liv.]],"",Tableau1[[#This Row],[KM SOS]],"",Tableau1[[#This Row],[KM Réel]],"",Tableau1[[#This Row],[Revenus des liv.]],"",Tableau1[[#This Row],[Essence SOS]],"",Tableau1[[#This Row],[Ajustements salariales]],"",Tableau1[[#This Row],[Commentaires]],"",Tableau1[[#This Row],[Année]],"",Tableau1[[#This Row],[mois]]) -> 2024-12-1114214,4187,176,429,6902024décembre
B108: 102 | C108: 2024-12-12 | D108: 1 | E108: 09:00:00 | F108: 9 | G108: 8 | H108: 349.1 | I108: 304.6 | J108: 141.65 | K108: 48.33 | L108: 0 | N108: =YEAR(Tableau1[[#This Row],[Date]]) -> 2024 | O108: =TEXT(Tableau1[[#This Row],[Date]],"mmmm") -> décembre | P108: =DAY(Tableau1[[#This Row],[Date]]) -> 12 | Q108: =CONCATENATE(TEXT(Tableau1[[#This Row],[Date]],"aaaa-mm-jj"),"",Tableau1[[#This Row],[Jours travaillées]],"",Tableau1[[#This Row],[NBR de liv.]],"",Tableau1[[#This Row],[KM SOS]],"",Tableau1[[#This Row],[KM Réel]],"",Tableau1[[#This Row],[Revenus des liv.]],"",Tableau1[[#This Row],[Essence SOS]],"",Tableau1[[#This Row],[Ajustements salariales]],"",Tableau1[[#This Row],[Commentaires]],"",Tableau1[[#This Row],[Année]],"",Tableau1[[#This Row],[mois]]) -> 2024-12-1218349,1304,6141,6548,3302024décembre
B109: 103 | C109: 2024-12-13 | D109: 1 | E109: 07:20:00 | F109: 7.333333333 | G109: 8 | H109: 179 | I109: 156.2 | J109: 131.57 | K109: 24.79 | L109: -27.35 | N109: =YEAR(Tableau1[[#This Row],[Date]]) -> 2024 | O109: =TEXT(Tableau1[[#This Row],[Date]],"mmmm") -> décembre | P109: =DAY(Tableau1[[#This Row],[Date]]) -> 13 | Q109: =CONCATENATE(TEXT(Tableau1[[#This Row],[Date]],"aaaa-mm-jj"),"",Tableau1[[#This Row],[Jours travaillées]],"",Tableau1[[#This Row],[NBR de liv.]],"",Tableau1[[#This Row],[KM SOS]],"",Tableau1[[#This Row],[KM Réel]],"",Tableau1[[#This Row],[Revenus des liv.]],"",Tableau1[[#This Row],[Essence SOS]],"",Tableau1[[#This Row],[Ajustements salariales]],"",Tableau1[[#This Row],[Commentaires]],"",Tableau1[[#This Row],[Année]],"",Tableau1[[#This Row],[mois]]) -> 2024-12-1318179156,2131,5724,79-27,352024décembre
B110: 104 | C110: 2024-12-16 | D110: 1 | E110: 07:55:00 | F110: 7.916666667 | G110: 14 | H110: 169.3 | I110: 178 | J110: 95.64 | K110: 22.16 | L110: 0 | N110: =YEAR(Tableau1[[#This Row],[Date]]) -> 2024 | O110: =TEXT(Tableau1[[#This Row],[Date]],"mmmm") -> décembre | P110: =DAY(Tableau1[[#This Row],[Date]]) -> 16 | Q110: =CONCATENATE(TEXT(Tableau1[[#This Row],[Date]],"aaaa-mm-jj"),"",Tableau1[[#This Row],[Jours travaillées]],"",Tableau1[[#This Row],[NBR de liv.]],"",Tableau1[[#This Row],[KM SOS]],"",Tableau1[[#This Row],[KM Réel]],"",Tableau1[[#This Row],[Revenus des liv.]],"",Tableau1[[#This Row],[Essence SOS]],"",Tableau1[[#This Row],[Ajustements salariales]],"",Tableau1[[#This Row],[Commentaires]],"",Tableau1[[#This Row],[Année]],"",Tableau1[[#This Row],[mois]]) -> 2024-12-16114169,317895,6422,1602024décembre
B111: 105 | C111: 2024-12-17 | D111: 1 | E111: 08:00:00 | F111: 8 | G111: 2 | H111: 523.3 | I111: 550 | J111: 205.25 | K111: 68.46 | L111: 0 | N111: =YEAR(Tableau1[[#This Row],[Date]]) -> 2024 | O111: =TEXT(Tableau1[[#This Row],[Date]],"mmmm") -> décembre | P111: =DAY(Tableau1[[#This Row],[Date]]) -> 17 | Q111: =CONCATENATE(TEXT(Tableau1[[#This Row],[Date]],"aaaa-mm-jj"),"",Tableau1[[#This Row],[Jours travaillées]],"",Tableau1[[#This Row],[NBR de liv.]],"",Tableau1[[#This Row],[KM SOS]],"",Tableau1[[#This Row],[KM Réel]],"",Tableau1[[#This Row],[Revenus des liv.]],"",Tableau1[[#This Row],[Essence SOS]],"",Tableau1[[#This Row],[Ajustements salariales]],"",Tableau1[[#This Row],[Commentaires]],"",Tableau1[[#This Row],[Année]],"",Tableau1[[#This Row],[mois]]) -> 2024-12-1712523,3550205,2568,4602024décembre
B112: 106 | C112: 2024-12-18 | D112: 1 | E112: 07:05:00 | F112: 7.083333333 | G112: 3 | H112: 321.7 | I112: 338.1 | J112: 114.92 | K112: 42.08 | L112: 0 | N112: =YEAR(Tableau1[[#This Row],[Date]]) -> 2024 | O112: =TEXT(Tableau1[[#This Row],[Date]],"mmmm") -> décembre | P112: =DAY(Tableau1[[#This Row],[Date]]) -> 18 | Q112: =CONCATENATE(TEXT(Tableau1[[#This Row],[Date]],"aaaa-mm-jj"),"",Tableau1[[#This Row],[Jours travaillées]],"",Tableau1[[#This Row],[NBR de liv.]],"",Tableau1[[#This Row],[KM SOS]],"",Tableau1[[#This Row],[KM Réel]],"",Tableau1[[#This Row],[Revenus des liv.]],"",Tableau1[[#This Row],[Essence SOS]],"",Tableau1[[#This Row],[Ajustements salariales]],"",Tableau1[[#This Row],[Commentaires]],"",Tableau1[[#This Row],[Année]],"",Tableau1[[#This Row],[mois]]) -> 2024-12-1813321,7338,1114,9242,0802024décembre
B113: 107 | C113: 2024-12-19 | D113: 1 | E113: 10:50:00 | F113: 10.83333333 | G113: 11 | H113: 269.4 | I113: 283.2 | J113: 154.57 | K113: 35.25 | L113: 0 | N113: =YEAR(Tableau1[[#This Row],[Date]]) -> 2024 | O113: =TEXT(Tableau1[[#This Row],[Date]],"mmmm") -> décembre | P113: =DAY(Tableau1[[#This Row],[Date]]) -> 19 | Q113: =CONCATENATE(TEXT(Tableau1[[#This Row],[Date]],"aaaa-mm-jj"),"",Tableau1[[#This Row],[Jours travaillées]],"",Tableau1[[#This Row],[NBR de liv.]],"",Tableau1[[#This Row],[KM SOS]],"",Tableau1[[#This Row],[KM Réel]],"",Tableau1[[#This Row],[Revenus des liv.]],"",Tableau1[[#This Row],[Essence SOS]],"",Tableau1[[#This Row],[Ajustements salariales]],"",Tableau1[[#This Row],[Commentaires]],"",Tableau1[[#This Row],[Année]],"",Tableau1[[#This Row],[mois]]) -> 2024-12-19111269,4283,2154,5735,2502024décembre
B114: 108 | C114: 2024-12-20 | D114: 1 | E114: 08:00:00 | F114: 8 | G114: 7 | H114: 103.3 | I114: 108.6 | J114: 80.08 | K114: 13.52 | L114: 0 | N114: =YEAR(Tableau1[[#This Row],[Date]]) -> 2024 | O114: =TEXT(Tableau1[[#This Row],[Date]],"mmmm") -> décembre | P114: =DAY(Tableau1[[#This Row],[Date]]) -> 20 | Q114: =CONCATENATE(TEXT(Tableau1[[#This Row],[Date]],"aaaa-mm-jj"),"",Tableau1[[#This Row],[Jours travaillées]],"",Tableau1[[#This Row],[NBR de liv.]],"",Tableau1[[#This Row],[KM SOS]],"",Tableau1[[#This Row],[KM Réel]],"",Tableau1[[#This Row],[Revenus des liv.]],"",Tableau1[[#This Row],[Essence SOS]],"",Tableau1[[#This Row],[Ajustements salariales]],"",Tableau1[[#This Row],[Commentaires]],"",Tableau1[[#This Row],[Année]],"",Tableau1[[#This Row],[mois]]) -> 2024-12-2017103,3108,680,0813,5202024décembre
B115: 109 | C115: 2024-12-23 | D115: 1 | E115: 06:45:00 | F115: 6.75 | G115: 11 | H115: 581.7 | I115: 110.1 | J115: 70.66 | K115: 5.61 | L115: 0 | N115: =YEAR(Tableau1[[#This Row],[Date]]) -> 2024 | O115: =TEXT(Tableau1[[#This Row],[Date]],"mmmm") -> décembre | P115: =DAY(Tableau1[[#This Row],[Date]]) -> 23 | Q115: =CONCATENATE(TEXT(Tableau1[[#This Row],[Date]],"aaaa-mm-jj"),"",Tableau1[[#This Row],[Jours travaillées]],"",Tableau1[[#This Row],[NBR de liv.]],"",Tableau1[[#This Row],[KM SOS]],"",Tableau1[[#This Row],[KM Réel]],"",Tableau1[[#This Row],[Revenus des liv.]],"",Tableau1[[#This Row],[Essence SOS]],"",Tableau1[[#This Row],[Ajustements salariales]],"",Tableau1[[#This Row],[Commentaires]],"",Tableau1[[#This Row],[Année]],"",Tableau1[[#This Row],[mois]]) -> 2024-12-23111581,7110,170,665,6102024décembre
B116: 110 | C116: 2024-12-24 | D116: 1 | E116: 03:00:00 | F116: 3 | G116: 5 | H116: 210 | I116: 152.4 | J116: 42.2 | K116: 7.77 | L116: 0 | N116: =YEAR(Tableau1[[#This Row],[Date]]) -> 2024 | O116: =TEXT(Tableau1[[#This Row],[Date]],"mmmm") -> décembre | P116: =DAY(Tableau1[[#This Row],[Date]]) -> 24 | Q116: =CONCATENATE(TEXT(Tableau1[[#This Row],[Date]],"aaaa-mm-jj"),"",Tableau1[[#This Row],[Jours travaillées]],"",Tableau1[[#This Row],[NBR de liv.]],"",Tableau1[[#This Row],[KM SOS]],"",Tableau1[[#This Row],[KM Réel]],"",Tableau1[[#This Row],[Revenus des liv.]],"",Tableau1[[#This Row],[Essence SOS]],"",Tableau1[[#This Row],[Ajustements salariales]],"",Tableau1[[#This Row],[Commentaires]],"",Tableau1[[#This Row],[Année]],"",Tableau1[[#This Row],[mois]]) -> 2024-12-2415210152,442,27,7702024décembre
B117: 111 | C117: 2025-01-06 | D117: 1 | E117: 07:40:00 | F117: 7.666666667 | G117: 5 | H117: 316.1 | I117: 351.3 | J117: 131.49 | K117: 43.79 | L117: 0 | N117: =YEAR(Tableau1[[#This Row],[Date]]) -> 2025 | O117: =TEXT(Tableau1[[#This Row],[Date]],"mmmm") -> janvier | P117: =DAY(Tableau1[[#This Row],[Date]]) -> 6 | Q117: =CONCATENATE(TEXT(Tableau1[[#This Row],[Date]],"aaaa-mm-jj"),"",Tableau1[[#This Row],[Jours travaillées]],"",Tableau1[[#This Row],[NBR de liv.]],"",Tableau1[[#This Row],[KM SOS]],"",Tableau1[[#This Row],[KM Réel]],"",Tableau1[[#This Row],[Revenus des liv.]],"",Tableau1[[#This Row],[Essence SOS]],"",Tableau1[[#This Row],[Ajustements salariales]],"",Tableau1[[#This Row],[Commentaires]],"",Tableau1[[#This Row],[Année]],"",Tableau1[[#This Row],[mois]]) -> 2025-01-0615316,1351,3131,4943,7902025janvier
B118: 112 | C118: 2025-01-07 | D118: 1 | E118: 05:05:00 | F118: 5.083333333 | G118: 2 | H118: 190.9 | I118: 212.1 | J118: 52.67 | K118: 26.44 | L118: 0 | N118: =YEAR(Tableau1[[#This Row],[Date]]) -> 2025 | O118: =TEXT(Tableau1[[#This Row],[Date]],"mmmm") -> janvier | P118: =DAY(Tableau1[[#This Row],[Date]]) -> 7 | Q118: =CONCATENATE(TEXT(Tableau1[[#This Row],[Date]],"aaaa-mm-jj"),"",Tableau1[[#This Row],[Jours travaillées]],"",Tableau1[[#This Row],[NBR de liv.]],"",Tableau1[[#This Row],[KM SOS]],"",Tableau1[[#This Row],[KM Réel]],"",Tableau1[[#This Row],[Revenus des liv.]],"",Tableau1[[#This Row],[Essence SOS]],"",Tableau1[[#This Row],[Ajustements salariales]],"",Tableau1[[#This Row],[Commentaires]],"",Tableau1[[#This Row],[Année]],"",Tableau1[[#This Row],[mois]]) -> 2025-01-0712190,9212,152,6726,4402025janvier
B119: 113 | C119: 2025-01-08 | D119: 1 | E119: 06:00:00 | F119: 6 | G119: 7 | H119: 105 | I119: 116.7 | J119: 62.42 | K119: 14.55 | L119: 0 | N119: =YEAR(Tableau1[[#This Row],[Date]]) -> 2025 | O119: =TEXT(Tableau1[[#This Row],[Date]],"mmmm") -> janvier | P119: =DAY(Tableau1[[#This Row],[Date]]) -> 8 | Q119: =CONCATENATE(TEXT(Tableau1[[#This Row],[Date]],"aaaa-mm-jj"),"",Tableau1[[#This Row],[Jours travaillées]],"",Tableau1[[#This Row],[NBR de liv.]],"",Tableau1[[#This Row],[KM SOS]],"",Tableau1[[#This Row],[KM Réel]],"",Tableau1[[#This Row],[Revenus des liv.]],"",Tableau1[[#This Row],[Essence SOS]],"",Tableau1[[#This Row],[Ajustements salariales]],"",Tableau1[[#This Row],[Commentaires]],"",Tableau1[[#This Row],[Année]],"",Tableau1[[#This Row],[mois]]) -> 2025-01-0817105116,762,4214,5502025janvier
B120: 114 | C120: 2025-01-09 | D120: 1 | E120: 06:00:00 | F120: 6 | G120: 4 | H120: 156.2 | I120: 173.6 | J120: 87.99 | K120: 21.64 | L120: 0 | N120: =YEAR(Tableau1[[#This Row],[Date]]) -> 2025 | O120: =TEXT(Tableau1[[#This Row],[Date]],"mmmm") -> janvier | P120: =DAY(Tableau1[[#This Row],[Date]]) -> 9 | Q120: =CONCATENATE(TEXT(Tableau1[[#This Row],[Date]],"aaaa-mm-jj"),"",Tableau1[[#This Row],[Jours travaillées]],"",Tableau1[[#This Row],[NBR de liv.]],"",Tableau1[[#This Row],[KM SOS]],"",Tableau1[[#This Row],[KM Réel]],"",Tableau1[[#This Row],[Revenus des liv.]],"",Tableau1[[#This Row],[Essence SOS]],"",Tableau1[[#This Row],[Ajustements salariales]],"",Tableau1[[#This Row],[Commentaires]],"",Tableau1[[#This Row],[Année]],"",Tableau1[[#This Row],[mois]]) -> 2025-01-0914156,2173,687,9921,6402025janvier
B121: 115 | C121: 2025-01-10 | D121: 1 | E121: 06:00:00 | F121: 6 | G121: 6 | H121: 124.7 | I121: 138.6 | J121: 77.77 | K121: 17.28 | L121: 0 | N121: =YEAR(Tableau1[[#This Row],[Date]]) -> 2025 | O121: =TEXT(Tableau1[[#This Row],[Date]],"mmmm") -> janvier | P121: =DAY(Tableau1[[#This Row],[Date]]) -> 10 | Q121: =CONCATENATE(TEXT(Tableau1[[#This Row],[Date]],"aaaa-mm-jj"),"",Tableau1[[#This Row],[Jours travaillées]],"",Tableau1[[#This Row],[NBR de liv.]],"",Tableau1[[#This Row],[KM SOS]],"",Tableau1[[#This Row],[KM Réel]],"",Tableau1[[#This Row],[Revenus des liv.]],"",Tableau1[[#This Row],[Essence SOS]],"",Tableau1[[#This Row],[Ajustements salariales]],"",Tableau1[[#This Row],[Commentaires]],"",Tableau1[[#This Row],[Année]],"",Tableau1[[#This Row],[mois]]) -> 2025-01-1016124,7138,677,7717,2802025janvier
B122: =ROW(B122)-6 -> 116 | C122: 2025-01-13 | D122: 1 | E122: 07:40:00 | F122: 7.666666667 | G122: 12 | H122: 250.3 | I122: 211.9 | J122: 124.8 | K122: 31.47 | L122: 0 | N122: =YEAR(Tableau1[[#This Row],[Date]]) -> 2025 | O122: =TEXT(Tableau1[[#This Row],[Date]],"mmmm") -> janvier | P122: =DAY(Tableau1[[#This Row],[Date]]) -> 13 | Q122: =CONCATENATE(TEXT(Tableau1[[#This Row],[Date]],"aaaa-mm-jj"),"",Tableau1[[#This Row],[Jours travaillées]],"",Tableau1[[#This Row],[NBR de liv.]],"",Tableau1[[#This Row],[KM SOS]],"",Tableau1[[#This Row],[KM Réel]],"",Tableau1[[#This Row],[Revenus des liv.]],"",Tableau1[[#This Row],[Essence SOS]],"",Tableau1[[#This Row],[Ajustements salariales]],"",Tableau1[[#This Row],[Commentaires]],"",Tableau1[[#This Row],[Année]],"",Tableau1[[#This Row],[mois]]) -> 2025-01-13112250,3211,9124,831,4702025janvier
B123: 117 | C123: 2025-01-14 | D123: 1 | E123: 07:10:00 | F123: 7.166666667 | G123: 11 | H123: 142.5 | I123: 120.7 | J123: 74.42 | K123: 17.93 | L123: 0 | N123: =YEAR(Tableau1[[#This Row],[Date]]) -> 2025 | O123: =TEXT(Tableau1[[#This Row],[Date]],"mmmm") -> janvier | P123: =DAY(Tableau1[[#This Row],[Date]]) -> 14 | Q123: =CONCATENATE(TEXT(Tableau1[[#This Row],[Date]],"aaaa-mm-jj"),"",Tableau1[[#This Row],[Jours travaillées]],"",Tableau1[[#This Row],[NBR de liv.]],"",Tableau1[[#This Row],[KM SOS]],"",Tableau1[[#This Row],[KM Réel]],"",Tableau1[[#This Row],[Revenus des liv.]],"",Tableau1[[#This Row],[Essence SOS]],"",Tableau1[[#This Row],[Ajustements salariales]],"",Tableau1[[#This Row],[Commentaires]],"",Tableau1[[#This Row],[Année]],"",Tableau1[[#This Row],[mois]]) -> 2025-01-14111142,5120,774,4217,9302025janvier
B124: 118 | C124: 2025-01-15 | D124: 1 | E124: 06:10:00 | F124: 6.166666667 | G124: 4 | H124: 106.2 | I124: 89.9 | J124: 53.74 | K124: 13.35 | L124: 0 | N124: =YEAR(Tableau1[[#This Row],[Date]]) -> 2025 | O124: =TEXT(Tableau1[[#This Row],[Date]],"mmmm") -> janvier | P124: =DAY(Tableau1[[#This Row],[Date]]) -> 15 | Q124: =CONCATENATE(TEXT(Tableau1[[#This Row],[Date]],"aaaa-mm-jj"),"",Tableau1[[#This Row],[Jours travaillées]],"",Tableau1[[#This Row],[NBR de liv.]],"",Tableau1[[#This Row],[KM SOS]],"",Tableau1[[#This Row],[KM Réel]],"",Tableau1[[#This Row],[Revenus des liv.]],"",Tableau1[[#This Row],[Essence SOS]],"",Tableau1[[#This Row],[Ajustements salariales]],"",Tableau1[[#This Row],[Commentaires]],"",Tableau1[[#This Row],[Année]],"",Tableau1[[#This Row],[mois]]) -> 2025-01-1514106,289,953,7413,3502025janvier
B125: 119 | C125: 2025-01-16 | D125: 1 | E125: 08:40:00 | F125: =IF(E125="","",(E125/"1:00")) -> 8.666666667 | G125: 5 | H125: 383.5 | I125: 324.7 | J125: 137.59 | K125: 48.23 | L125: 0 | N125: =YEAR(Tableau1[[#This Row],[Date]]) -> 2025 | O125: =TEXT(Tableau1[[#This Row],[Date]],"mmmm") -> janvier | P125: =DAY(Tableau1[[#This Row],[Date]]) -> 16 | Q125: =CONCATENATE(TEXT(Tableau1[[#This Row],[Date]],"aaaa-mm-jj"),"",Tableau1[[#This Row],[Jours travaillées]],"",Tableau1[[#This Row],[NBR de liv.]],"",Tableau1[[#This Row],[KM SOS]],"",Tableau1[[#This Row],[KM Réel]],"",Tableau1[[#This Row],[Revenus des liv.]],"",Tableau1[[#This Row],[Essence SOS]],"",Tableau1[[#This Row],[Ajustements salariales]],"",Tableau1[[#This Row],[Commentaires]],"",Tableau1[[#This Row],[Année]],"",Tableau1[[#This Row],[mois]]) -> 2025-01-1615383,5324,7137,5948,2302025janvier
B126: 120 | C126: 2025-01-17 | D126: 1 | E126: 08:00:00 | F126: 8 | G126: 8 | H126: 210.6 | I126: 178.3 | J126: 100.62 | K126: 26.48 | L126: 27.35 | N126: =YEAR(Tableau1[[#This Row],[Date]]) -> 2025 | O126: =TEXT(Tableau1[[#This Row],[Date]],"mmmm") -> janvier | P126: =DAY(Tableau1[[#This Row],[Date]]) -> 17 | Q126: =CONCATENATE(TEXT(Tableau1[[#This Row],[Date]],"aaaa-mm-jj"),"",Tableau1[[#This Row],[Jours travaillées]],"",Tableau1[[#This Row],[NBR de liv.]],"",Tableau1[[#This Row],[KM SOS]],"",Tableau1[[#This Row],[KM Réel]],"",Tableau1[[#This Row],[Revenus des liv.]],"",Tableau1[[#This Row],[Essence SOS]],"",Tableau1[[#This Row],[Ajustements salariales]],"",Tableau1[[#This Row],[Commentaires]],"",Tableau1[[#This Row],[Année]],"",Tableau1[[#This Row],[mois]]) -> 2025-01-1718210,6178,3100,6226,4827,352025janvier
B127: 121 | C127: 2025-01-20 | D127: 1 | E127: 07:55:00 | F127: 7.916666667 | G127: 7 | H127: 249.7 | I127: 208.6 | J127: 132.15 | K127: 30.21 | L127: 0 | N127: =YEAR(Tableau1[[#This Row],[Date]]) -> 2025 | O127: =TEXT(Tableau1[[#This Row],[Date]],"mmmm") -> janvier | P127: =DAY(Tableau1[[#This Row],[Date]]) -> 20 | Q127: =CONCATENATE(TEXT(Tableau1[[#This Row],[Date]],"aaaa-mm-jj"),"",Tableau1[[#This Row],[Jours travaillées]],"",Tableau1[[#This Row],[NBR de liv.]],"",Tableau1[[#This Row],[KM SOS]],"",Tableau1[[#This Row],[KM Réel]],"",Tableau1[[#This Row],[Revenus des liv.]],"",Tableau1[[#This Row],[Essence SOS]],"",Tableau1[[#This Row],[Ajustements salariales]],"",Tableau1[[#This Row],[Commentaires]],"",Tableau1[[#This Row],[Année]],"",Tableau1[[#This Row],[mois]]) -> 2025-01-2017249,7208,6132,1530,2102025janvier
B128: 122 | C128: 2025-01-21 | D128: 1 | E128: 06:00:00 | F128: 6 | G128: 8 | H128: 158.1 | I128: 132.1 | J128: 73.71 | K128: 19.13 | L128: 0 | N128: =YEAR(Tableau1[[#This Row],[Date]]) -> 2025 | O128: =TEXT(Tableau1[[#This Row],[Date]],"mmmm") -> janvier | P128: =DAY(Tableau1[[#This Row],[Date]]) -> 21 | Q128: =CONCATENATE(TEXT(Tableau1[[#This Row],[Date]],"aaaa-mm-jj"),"",Tableau1[[#This Row],[Jours travaillées]],"",Tableau1[[#This Row],[NBR de liv.]],"",Tableau1[[#This Row],[KM SOS]],"",Tableau1[[#This Row],[KM Réel]],"",Tableau1[[#This Row],[Revenus des liv.]],"",Tableau1[[#This Row],[Essence SOS]],"",Tableau1[[#This Row],[Ajustements salariales]],"",Tableau1[[#This Row],[Commentaires]],"",Tableau1[[#This Row],[Année]],"",Tableau1[[#This Row],[mois]]) -> 2025-01-2118158,1132,173,7119,1302025janvier
B129: 123 | C129: 2025-01-22 | D129: 1 | E129: 08:00:00 | F129: 8 | G129: 12 | H129: 228.2 | I129: 190.6 | J129: 145.48 | K129: 27.61 | L129: 0 | N129: =YEAR(Tableau1[[#This Row],[Date]]) -> 2025 | O129: =TEXT(Tableau1[[#This Row],[Date]],"mmmm") -> janvier | P129: =DAY(Tableau1[[#This Row],[Date]]) -> 22 | Q129: =CONCATENATE(TEXT(Tableau1[[#This Row],[Date]],"aaaa-mm-jj"),"",Tableau1[[#This Row],[Jours travaillées]],"",Tableau1[[#This Row],[NBR de liv.]],"",Tableau1[[#This Row],[KM SOS]],"",Tableau1[[#This Row],[KM Réel]],"",Tableau1[[#This Row],[Revenus des liv.]],"",Tableau1[[#This Row],[Essence SOS]],"",Tableau1[[#This Row],[Ajustements salariales]],"",Tableau1[[#This Row],[Commentaires]],"",Tableau1[[#This Row],[Année]],"",Tableau1[[#This Row],[mois]]) -> 2025-01-22112228,2190,6145,4827,6102025janvier
B130: 124 | C130: 2025-01-23 | D130: 1 | E130: 06:00:00 | F130: 6 | G130: 3 | H130: 171 | I130: 142.8 | J130: 35.86 | K130: 20.68 | L130: 0 | N130: =YEAR(Tableau1[[#This Row],[Date]]) -> 2025 | O130: =TEXT(Tableau1[[#This Row],[Date]],"mmmm") -> janvier | P130: =DAY(Tableau1[[#This Row],[Date]]) -> 23 | Q130: =CONCATENATE(TEXT(Tableau1[[#This Row],[Date]],"aaaa-mm-jj"),"",Tableau1[[#This Row],[Jours travaillées]],"",Tableau1[[#This Row],[NBR de liv.]],"",Tableau1[[#This Row],[KM SOS]],"",Tableau1[[#This Row],[KM Réel]],"",Tableau1[[#This Row],[Revenus des liv.]],"",Tableau1[[#This Row],[Essence SOS]],"",Tableau1[[#This Row],[Ajustements salariales]],"",Tableau1[[#This Row],[Commentaires]],"",Tableau1[[#This Row],[Année]],"",Tableau1[[#This Row],[mois]]) -> 2025-01-2313171142,835,8620,6802025janvier
B131: 125 | C131: 2025-01-27 | D131: 1 | E131: 09:10:00 | F131: 9.166666667 | G131: 4 | H131: 598.8 | I131: 408.6 | J131: 338.1 | K131: 77.1 | L131: 0 | N131: =YEAR(Tableau1[[#This Row],[Date]]) -> 2025 | O131: =TEXT(Tableau1[[#This Row],[Date]],"mmmm") -> janvier | P131: =DAY(Tableau1[[#This Row],[Date]]) -> 27 | Q131: =CONCATENATE(TEXT(Tableau1[[#This Row],[Date]],"aaaa-mm-jj"),"",Tableau1[[#This Row],[Jours travaillées]],"",Tableau1[[#This Row],[NBR de liv.]],"",Tableau1[[#This Row],[KM SOS]],"",Tableau1[[#This Row],[KM Réel]],"",Tableau1[[#This Row],[Revenus des liv.]],"",Tableau1[[#This Row],[Essence SOS]],"",Tableau1[[#This Row],[Ajustements salariales]],"",Tableau1[[#This Row],[Commentaires]],"",Tableau1[[#This Row],[Année]],"",Tableau1[[#This Row],[mois]]) -> 2025-01-2714598,8408,6338,177,102025janvier
B132: 126 | C132: 2025-01-28 | D132: 1 | E132: 07:40:00 | F132: 7.666666667 | G132: 11 | H132: 176.4 | I132: 120.4 | J132: 93.93 | K132: 22.72 | L132: 0 | N132: =YEAR(Tableau1[[#This Row],[Date]]) -> 2025 | O132: =TEXT(Tableau1[[#This Row],[Date]],"mmmm") -> janvier | P132: =DAY(Tableau1[[#This Row],[Date]]) -> 28 | Q132: =CONCATENATE(TEXT(Tableau1[[#This Row],[Date]],"aaaa-mm-jj"),"",Tableau1[[#This Row],[Jours travaillées]],"",Tableau1[[#This Row],[NBR de liv.]],"",Tableau1[[#This Row],[KM SOS]],"",Tableau1[[#This Row],[KM Réel]],"",Tableau1[[#This Row],[Revenus des liv.]],"",Tableau1[[#This Row],[Essence SOS]],"",Tableau1[[#This Row],[Ajustements salariales]],"",Tableau1[[#This Row],[Commentaires]],"",Tableau1[[#This Row],[Année]],"",Tableau1[[#This Row],[mois]]) -> 2025-01-28111176,4120,493,9322,7202025janvier
B133: 127 | C133: 2025-01-29 | D133: 1 | E133: 07:00:00 | F133: 7 | G133: 9 | H133: 84.1 | I133: 57.4 | J133: 67.79 | K133: 10.83 | L133: 0 | N133: =YEAR(Tableau1[[#This Row],[Date]]) -> 2025 | O133: =TEXT(Tableau1[[#This Row],[Date]],"mmmm") -> janvier | P133: =DAY(Tableau1[[#This Row],[Date]]) -> 29 | Q133: =CONCATENATE(TEXT(Tableau1[[#This Row],[Date]],"aaaa-mm-jj"),"",Tableau1[[#This Row],[Jours travaillées]],"",Tableau1[[#This Row],[NBR de liv.]],"",Tableau1[[#This Row],[KM SOS]],"",Tableau1[[#This Row],[KM Réel]],"",Tableau1[[#This Row],[Revenus des liv.]],"",Tableau1[[#This Row],[Essence SOS]],"",Tableau1[[#This Row],[Ajustements salariales]],"",Tableau1[[#This Row],[Commentaires]],"",Tableau1[[#This Row],[Année]],"",Tableau1[[#This Row],[mois]]) -> 2025-01-291984,157,467,7910,8302025janvier
B134: 128 | C134: 2025-01-30 | D134: 1 | E134: 08:33:00 | F134: 8.55 | G134: 8 | H134: 320.8 | I134: 218.9 | J134: 109.7 | K134: 41.3 | L134: 0 | N134: =YEAR(Tableau1[[#This Row],[Date]]) -> 2025 | O134: =TEXT(Tableau1[[#This Row],[Date]],"mmmm") -> janvier | P134: =DAY(Tableau1[[#This Row],[Date]]) -> 30 | Q134: =CONCATENATE(TEXT(Tableau1[[#This Row],[Date]],"aaaa-mm-jj"),"",Tableau1[[#This Row],[Jours travaillées]],"",Tableau1[[#This Row],[NBR de liv.]],"",Tableau1[[#This Row],[KM SOS]],"",Tableau1[[#This Row],[KM Réel]],"",Tableau1[[#This Row],[Revenus des liv.]],"",Tableau1[[#This Row],[Essence SOS]],"",Tableau1[[#This Row],[Ajustements salariales]],"",Tableau1[[#This Row],[Commentaires]],"",Tableau1[[#This Row],[Année]],"",Tableau1[[#This Row],[mois]]) -> 2025-01-3018320,8218,9109,741,302025janvier
B135: 129 | C135: 2025-01-31 | D135: 1 | E135: 06:25:00 | F135: 6.416666667 | G135: 6 | H135: 170.9 | I135: 116.6 | J135: 49.79 | K135: 22 | L135: -21.99 | N135: =YEAR(Tableau1[[#This Row],[Date]]) -> 2025 | O135: =TEXT(Tableau1[[#This Row],[Date]],"mmmm") -> janvier | P135: =DAY(Tableau1[[#This Row],[Date]]) -> 31 | Q135: =CONCATENATE(TEXT(Tableau1[[#This Row],[Date]],"aaaa-mm-jj"),"",Tableau1[[#This Row],[Jours travaillées]],"",Tableau1[[#This Row],[NBR de liv.]],"",Tableau1[[#This Row],[KM SOS]],"",Tableau1[[#This Row],[KM Réel]],"",Tableau1[[#This Row],[Revenus des liv.]],"",Tableau1[[#This Row],[Essence SOS]],"",Tableau1[[#This Row],[Ajustements salariales]],"",Tableau1[[#This Row],[Commentaires]],"",Tableau1[[#This Row],[Année]],"",Tableau1[[#This Row],[mois]]) -> 2025-01-3116170,9116,649,7922-21,992025janvier
B136: =ROW(B136)-6 -> 130 | C136: 2025-02-03 | D136: 1 | E136: 06:25:00 | F136: =IF(E136="","",(E136/"1:00")) -> 6.416666667 | G136: 9 | H136: 167.8 | I136: 11.6 | J136: 76.51 | K136: 21.13 | L136: 0 | N136: =YEAR(Tableau1[[#This Row],[Date]]) -> 2025 | O136: =TEXT(Tableau1[[#This Row],[Date]],"mmmm") -> février | P136: =DAY(Tableau1[[#This Row],[Date]]) -> 3 | Q136: =CONCATENATE(TEXT(Tableau1[[#This Row],[Date]],"aaaa-mm-jj"),"",Tableau1[[#This Row],[Jours travaillées]],"",Tableau1[[#This Row],[NBR de liv.]],"",Tableau1[[#This Row],[KM SOS]],"",Tableau1[[#This Row],[KM Réel]],"",Tableau1[[#This Row],[Revenus des liv.]],"",Tableau1[[#This Row],[Essence SOS]],"",Tableau1[[#This Row],[Ajustements salariales]],"",Tableau1[[#This Row],[Commentaires]],"",Tableau1[[#This Row],[Année]],"",Tableau1[[#This Row],[mois]]) -> 2025-02-0319167,811,676,5121,1302025février
B137: 131 | C137: 2025-02-04 | D137: 1 | E137: 06:33:00 | F137: 6.55 | G137: 9 | H137: 112.6 | I137: 74.9 | J137: 68.99 | K137: 14.18 | L137: 0 | N137: =YEAR(Tableau1[[#This Row],[Date]]) -> 2025 | O137: =TEXT(Tableau1[[#This Row],[Date]],"mmmm") -> février | P137: =DAY(Tableau1[[#This Row],[Date]]) -> 4 | Q137: =CONCATENATE(TEXT(Tableau1[[#This Row],[Date]],"aaaa-mm-jj"),"",Tableau1[[#This Row],[Jours travaillées]],"",Tableau1[[#This Row],[NBR de liv.]],"",Tableau1[[#This Row],[KM SOS]],"",Tableau1[[#This Row],[KM Réel]],"",Tableau1[[#This Row],[Revenus des liv.]],"",Tableau1[[#This Row],[Essence SOS]],"",Tableau1[[#This Row],[Ajustements salariales]],"",Tableau1[[#This Row],[Commentaires]],"",Tableau1[[#This Row],[Année]],"",Tableau1[[#This Row],[mois]]) -> 2025-02-0419112,674,968,9914,1802025février
B138: 132 | C138: 2025-02-05 | D138: 1 | E138: 08:27:00 | F138: 8.45 | G138: 6 | H138: 242.3 | I138: 161.1 | J138: 107.13 | K138: 30.5 | L138: 0 | N138: =YEAR(Tableau1[[#This Row],[Date]]) -> 2025 | O138: =TEXT(Tableau1[[#This Row],[Date]],"mmmm") -> février | P138: =DAY(Tableau1[[#This Row],[Date]]) -> 5 | Q138: =CONCATENATE(TEXT(Tableau1[[#This Row],[Date]],"aaaa-mm-jj"),"",Tableau1[[#This Row],[Jours travaillées]],"",Tableau1[[#This Row],[NBR de liv.]],"",Tableau1[[#This Row],[KM SOS]],"",Tableau1[[#This Row],[KM Réel]],"",Tableau1[[#This Row],[Revenus des liv.]],"",Tableau1[[#This Row],[Essence SOS]],"",Tableau1[[#This Row],[Ajustements salariales]],"",Tableau1[[#This Row],[Commentaires]],"",Tableau1[[#This Row],[Année]],"",Tableau1[[#This Row],[mois]]) -> 2025-02-0516242,3161,1107,1330,502025février
B139: 133 | C139: 2025-02-06 | D139: 1 | E139: 08:25:00 | F139: 8.416666667 | G139: 9 | H139: 207.2 | I139: 137.8 | J139: 93.67 | K139: 26.09 | L139: 0 | N139: =YEAR(Tableau1[[#This Row],[Date]]) -> 2025 | O139: =TEXT(Tableau1[[#This Row],[Date]],"mmmm") -> février | P139: =DAY(Tableau1[[#This Row],[Date]]) -> 6 | Q139: =CONCATENATE(TEXT(Tableau1[[#This Row],[Date]],"aaaa-mm-jj"),"",Tableau1[[#This Row],[Jours travaillées]],"",Tableau1[[#This Row],[NBR de liv.]],"",Tableau1[[#This Row],[KM SOS]],"",Tableau1[[#This Row],[KM Réel]],"",Tableau1[[#This Row],[Revenus des liv.]],"",Tableau1[[#This Row],[Essence SOS]],"",Tableau1[[#This Row],[Ajustements salariales]],"",Tableau1[[#This Row],[Commentaires]],"",Tableau1[[#This Row],[Année]],"",Tableau1[[#This Row],[mois]]) -> 2025-02-0619207,2137,893,6726,0902025février
B140: 134 | C140: 2025-02-10 | D140: 1 | E140: 08:30:00 | F140: 8.5 | G140: 7 | H140: 371.2 | I140: 244.1 | J140: 156.97 | K140: 49.04 | L140: 0 | N140: =YEAR(Tableau1[[#This Row],[Date]]) -> 2025 | O140: =TEXT(Tableau1[[#This Row],[Date]],"mmmm") -> février | P140: =DAY(Tableau1[[#This Row],[Date]]) -> 10 | Q140: =CONCATENATE(TEXT(Tableau1[[#This Row],[Date]],"aaaa-mm-jj"),"",Tableau1[[#This Row],[Jours travaillées]],"",Tableau1[[#This Row],[NBR de liv.]],"",Tableau1[[#This Row],[KM SOS]],"",Tableau1[[#This Row],[KM Réel]],"",Tableau1[[#This Row],[Revenus des liv.]],"",Tableau1[[#This Row],[Essence SOS]],"",Tableau1[[#This Row],[Ajustements salariales]],"",Tableau1[[#This Row],[Commentaires]],"",Tableau1[[#This Row],[Année]],"",Tableau1[[#This Row],[mois]]) -> 2025-02-1017371,2244,1156,9749,0402025février
B141: 135 | C141: 2025-02-11 | D141: 1 | E141: 08:30:00 | F141: 8.5 | G141: 9 | H141: 279.2 | I141: 183.6 | J141: 112.69 | K141: 36.89 | L141: 0 | N141: =YEAR(Tableau1[[#This Row],[Date]]) -> 2025 | O141: =TEXT(Tableau1[[#This Row],[Date]],"mmmm") -> février | P141: =DAY(Tableau1[[#This Row],[Date]]) -> 11 | Q141: =CONCATENATE(TEXT(Tableau1[[#This Row],[Date]],"aaaa-mm-jj"),"",Tableau1[[#This Row],[Jours travaillées]],"",Tableau1[[#This Row],[NBR de liv.]],"",Tableau1[[#This Row],[KM SOS]],"",Tableau1[[#This Row],[KM Réel]],"",Tableau1[[#This Row],[Revenus des liv.]],"",Tableau1[[#This Row],[Essence SOS]],"",Tableau1[[#This Row],[Ajustements salariales]],"",Tableau1[[#This Row],[Commentaires]],"",Tableau1[[#This Row],[Année]],"",Tableau1[[#This Row],[mois]]) -> 2025-02-1119279,2183,6112,6936,8902025février
B142: 136 | C142: 2025-02-12 | D142: 1 | E142: 08:30:00 | F142: 8.5 | G142: 13 | H142: 179.6 | I142: 118.1 | J142: 88.6 | K142: 23.73 | L142: 0 | N142: =YEAR(Tableau1[[#This Row],[Date]]) -> 2025 | O142: =TEXT(Tableau1[[#This Row],[Date]],"mmmm") -> février | P142: =DAY(Tableau1[[#This Row],[Date]]) -> 12 | Q142: =CONCATENATE(TEXT(Tableau1[[#This Row],[Date]],"aaaa-mm-jj"),"",Tableau1[[#This Row],[Jours travaillées]],"",Tableau1[[#This Row],[NBR de liv.]],"",Tableau1[[#This Row],[KM SOS]],"",Tableau1[[#This Row],[KM Réel]],"",Tableau1[[#This Row],[Revenus des liv.]],"",Tableau1[[#This Row],[Essence SOS]],"",Tableau1[[#This Row],[Ajustements salariales]],"",Tableau1[[#This Row],[Commentaires]],"",Tableau1[[#This Row],[Année]],"",Tableau1[[#This Row],[mois]]) -> 2025-02-12113179,6118,188,623,7302025février
B143: 137 | C143: 2025-02-13 | D143: 1 | E143: 08:30:00 | F143: 8.5 | G143: 12 | H143: 256.7 | I143: 168.8 | J143: 157.53 | K143: 33.91 | L143: 0 | N143: =YEAR(Tableau1[[#This Row],[Date]]) -> 2025 | O143: =TEXT(Tableau1[[#This Row],[Date]],"mmmm") -> février | P143: =DAY(Tableau1[[#This Row],[Date]]) -> 13 | Q143: =CONCATENATE(TEXT(Tableau1[[#This Row],[Date]],"aaaa-mm-jj"),"",Tableau1[[#This Row],[Jours travaillées]],"",Tableau1[[#This Row],[NBR de liv.]],"",Tableau1[[#This Row],[KM SOS]],"",Tableau1[[#This Row],[KM Réel]],"",Tableau1[[#This Row],[Revenus des liv.]],"",Tableau1[[#This Row],[Essence SOS]],"",Tableau1[[#This Row],[Ajustements salariales]],"",Tableau1[[#This Row],[Commentaires]],"",Tableau1[[#This Row],[Année]],"",Tableau1[[#This Row],[mois]]) -> 2025-02-13112256,7168,8157,5333,9102025février
B144: =ROW(B144)-6 -> 138 | C144: 2025-02-17 | D144: 1 | E144: 07:30:00 | F144: =IF(E144="","",(E144/"1:00")) -> 7.5 | G144: 6 | H144: 59.7 | I144: 57 | J144: 60.23 | K144: 8.04 | L144: 0 | N144: =YEAR(Tableau1[[#This Row],[Date]]) -> 2025 | O144: =TEXT(Tableau1[[#This Row],[Date]],"mmmm") -> février | P144: =DAY(Tableau1[[#This Row],[Date]]) -> 17 | Q144: =CONCATENATE(TEXT(Tableau1[[#This Row],[Date]],"aaaa-mm-jj"),"",Tableau1[[#This Row],[Jours travaillées]],"",Tableau1[[#This Row],[NBR de liv.]],"",Tableau1[[#This Row],[KM SOS]],"",Tableau1[[#This Row],[KM Réel]],"",Tableau1[[#This Row],[Revenus des liv.]],"",Tableau1[[#This Row],[Essence SOS]],"",Tableau1[[#This Row],[Ajustements salariales]],"",Tableau1[[#This Row],[Commentaires]],"",Tableau1[[#This Row],[Année]],"",Tableau1[[#This Row],[mois]]) -> 2025-02-171659,75760,238,0402025février
B145: 139 | C145: 2025-02-18 | D145: 1 | E145: 08:00:00 | F145: 8 | G145: 5 | H145: 238.2 | I145: 227.6 | J145: 73.42 | K145: 32.11 | L145: 0 | N145: =YEAR(Tableau1[[#This Row],[Date]]) -> 2025 | O145: =TEXT(Tableau1[[#This Row],[Date]],"mmmm") -> février | P145: =DAY(Tableau1[[#This Row],[Date]]) -> 18 | Q145: =CONCATENATE(TEXT(Tableau1[[#This Row],[Date]],"aaaa-mm-jj"),"",Tableau1[[#This Row],[Jours travaillées]],"",Tableau1[[#This Row],[NBR de liv.]],"",Tableau1[[#This Row],[KM SOS]],"",Tableau1[[#This Row],[KM Réel]],"",Tableau1[[#This Row],[Revenus des liv.]],"",Tableau1[[#This Row],[Essence SOS]],"",Tableau1[[#This Row],[Ajustements salariales]],"",Tableau1[[#This Row],[Commentaires]],"",Tableau1[[#This Row],[Année]],"",Tableau1[[#This Row],[mois]]) -> 2025-02-1815238,2227,673,4232,1102025février
B146: 140 | C146: 2025-02-19 | D146: 1 | E146: 08:35:00 | F146: 8.583333333 | G146: 6 | H146: 156.6 | I146: 149.6 | J146: 75.93 | K146: 21.1 | L146: 0 | N146: =YEAR(Tableau1[[#This Row],[Date]]) -> 2025 | O146: =TEXT(Tableau1[[#This Row],[Date]],"mmmm") -> février | P146: =DAY(Tableau1[[#This Row],[Date]]) -> 19 | Q146: =CONCATENATE(TEXT(Tableau1[[#This Row],[Date]],"aaaa-mm-jj"),"",Tableau1[[#This Row],[Jours travaillées]],"",Tableau1[[#This Row],[NBR de liv.]],"",Tableau1[[#This Row],[KM SOS]],"",Tableau1[[#This Row],[KM Réel]],"",Tableau1[[#This Row],[Revenus des liv.]],"",Tableau1[[#This Row],[Essence SOS]],"",Tableau1[[#This Row],[Ajustements salariales]],"",Tableau1[[#This Row],[Commentaires]],"",Tableau1[[#This Row],[Année]],"",Tableau1[[#This Row],[mois]]) -> 2025-02-1916156,6149,675,9321,102025février
B147: 141 | C147: 2025-02-20 | D147: 1 | E147: 08:55:00 | F147: 8.916666667 | G147: 6 | H147: 349.6 | I147: 334 | J147: 164.47 | K147: 47.12 | L147: 0 | N147: =YEAR(Tableau1[[#This Row],[Date]]) -> 2025 | O147: =TEXT(Tableau1[[#This Row],[Date]],"mmmm") -> février | P147: =DAY(Tableau1[[#This Row],[Date]]) -> 20 | Q147: =CONCATENATE(TEXT(Tableau1[[#This Row],[Date]],"aaaa-mm-jj"),"",Tableau1[[#This Row],[Jours travaillées]],"",Tableau1[[#This Row],[NBR de liv.]],"",Tableau1[[#This Row],[KM SOS]],"",Tableau1[[#This Row],[KM Réel]],"",Tableau1[[#This Row],[Revenus des liv.]],"",Tableau1[[#This Row],[Essence SOS]],"",Tableau1[[#This Row],[Ajustements salariales]],"",Tableau1[[#This Row],[Commentaires]],"",Tableau1[[#This Row],[Année]],"",Tableau1[[#This Row],[mois]]) -> 2025-02-2016349,6334164,4747,1202025février
B148: 142 | C148: 2025-02-24 | D148: 1 | E148: 08:30:00 | F148: 8.5 | G148: 13 | H148: 262.9 | I148: 195.5 | J148: 206.74 | K148: 35.77 | L148: -55.16 | N148: =YEAR(Tableau1[[#This Row],[Date]]) -> 2025 | O148: =TEXT(Tableau1[[#This Row],[Date]],"mmmm") -> février | P148: =DAY(Tableau1[[#This Row],[Date]]) -> 24 | Q148: =CONCATENATE(TEXT(Tableau1[[#This Row],[Date]],"aaaa-mm-jj"),"",Tableau1[[#This Row],[Jours travaillées]],"",Tableau1[[#This Row],[NBR de liv.]],"",Tableau1[[#This Row],[KM SOS]],"",Tableau1[[#This Row],[KM Réel]],"",Tableau1[[#This Row],[Revenus des liv.]],"",Tableau1[[#This Row],[Essence SOS]],"",Tableau1[[#This Row],[Ajustements salariales]],"",Tableau1[[#This Row],[Commentaires]],"",Tableau1[[#This Row],[Année]],"",Tableau1[[#This Row],[mois]]) -> 2025-02-24113262,9195,5206,7435,77-55,162025février
B149: 143 | C149: 2025-02-25 | D149: 1 | E149: 07:45:00 | F149: 7.75 | G149: 7 | H149: 290 | I149: 215.7 | J149: 76.89 | K149: 39.47 | L149: 0 | N149: =YEAR(Tableau1[[#This Row],[Date]]) -> 2025 | O149: =TEXT(Tableau1[[#This Row],[Date]],"mmmm") -> février | P149: =DAY(Tableau1[[#This Row],[Date]]) -> 25 | Q149: =CONCATENATE(TEXT(Tableau1[[#This Row],[Date]],"aaaa-mm-jj"),"",Tableau1[[#This Row],[Jours travaillées]],"",Tableau1[[#This Row],[NBR de liv.]],"",Tableau1[[#This Row],[KM SOS]],"",Tableau1[[#This Row],[KM Réel]],"",Tableau1[[#This Row],[Revenus des liv.]],"",Tableau1[[#This Row],[Essence SOS]],"",Tableau1[[#This Row],[Ajustements salariales]],"",Tableau1[[#This Row],[Commentaires]],"",Tableau1[[#This Row],[Année]],"",Tableau1[[#This Row],[mois]]) -> 2025-02-2517290215,776,8939,4702025février
B150: 144 | C150: 2025-02-26 | D150: 1 | E150: 08:15:00 | F150: 8.25 | G150: 12 | H150: 248.2 | I150: 184.6 | J150: 107.83 | K150: 33.78 | L150: 0 | N150: =YEAR(Tableau1[[#This Row],[Date]]) -> 2025 | O150: =TEXT(Tableau1[[#This Row],[Date]],"mmmm") -> février | P150: =DAY(Tableau1[[#This Row],[Date]]) -> 26 | Q150: =CONCATENATE(TEXT(Tableau1[[#This Row],[Date]],"aaaa-mm-jj"),"",Tableau1[[#This Row],[Jours travaillées]],"",Tableau1[[#This Row],[NBR de liv.]],"",Tableau1[[#This Row],[KM SOS]],"",Tableau1[[#This Row],[KM Réel]],"",Tableau1[[#This Row],[Revenus des liv.]],"",Tableau1[[#This Row],[Essence SOS]],"",Tableau1[[#This Row],[Ajustements salariales]],"",Tableau1[[#This Row],[Commentaires]],"",Tableau1[[#This Row],[Année]],"",Tableau1[[#This Row],[mois]]) -> 2025-02-26112248,2184,6107,8333,7802025février
B151: 145 | C151: 2025-02-27 | D151: 1 | E151: 04:55:00 | F151: 4.916666667 | G151: 4 | H151: 154.6 | I151: 115 | J151: 47.65 | K151: 21.04 | L151: 0 | N151: =YEAR(Tableau1[[#This Row],[Date]]) -> 2025 | O151: =TEXT(Tableau1[[#This Row],[Date]],"mmmm") -> février | P151: =DAY(Tableau1[[#This Row],[Date]]) -> 27 | Q151: =CONCATENATE(TEXT(Tableau1[[#This Row],[Date]],"aaaa-mm-jj"),"",Tableau1[[#This Row],[Jours travaillées]],"",Tableau1[[#This Row],[NBR de liv.]],"",Tableau1[[#This Row],[KM SOS]],"",Tableau1[[#This Row],[KM Réel]],"",Tableau1[[#This Row],[Revenus des liv.]],"",Tableau1[[#This Row],[Essence SOS]],"",Tableau1[[#This Row],[Ajustements salariales]],"",Tableau1[[#This Row],[Commentaires]],"",Tableau1[[#This Row],[Année]],"",Tableau1[[#This Row],[mois]]) -> 2025-02-2714154,611547,6521,0402025février
B152: 146 | C152: 2025-02-28 | D152: 1 | E152: 06:10:00 | F152: 6.166666667 | G152: 7 | H152: 102.3 | I152: 76.1 | J152: 51.5 | K152: 13.92 | L152: 0 | N152: =YEAR(Tableau1[[#This Row],[Date]]) -> 2025 | O152: =TEXT(Tableau1[[#This Row],[Date]],"mmmm") -> février | P152: =DAY(Tableau1[[#This Row],[Date]]) -> 28 | Q152: =CONCATENATE(TEXT(Tableau1[[#This Row],[Date]],"aaaa-mm-jj"),"",Tableau1[[#This Row],[Jours travaillées]],"",Tableau1[[#This Row],[NBR de liv.]],"",Tableau1[[#This Row],[KM SOS]],"",Tableau1[[#This Row],[KM Réel]],"",Tableau1[[#This Row],[Revenus des liv.]],"",Tableau1[[#This Row],[Essence SOS]],"",Tableau1[[#This Row],[Ajustements salariales]],"",Tableau1[[#This Row],[Commentaires]],"",Tableau1[[#This Row],[Année]],"",Tableau1[[#This Row],[mois]]) -> 2025-02-2817102,376,151,513,9202025février
B153: =ROW(B153)-6 -> 147 | C153: 2025-07-14 | F153: =IF(E153="","",(E153/"1:00")) ->  | N153: =YEAR(Tableau1[[#This Row],[Date]]) -> 2025 | O153: =TEXT(Tableau1[[#This Row],[Date]],"mmmm") -> juillet | P153: =DAY(Tableau1[[#This Row],[Date]]) -> 14 | Q153: =CONCATENATE(TEXT(Tableau1[[#This Row],[Date]],"aaaa-mm-jj"),"",Tableau1[[#This Row],[Jours travaillées]],"",Tableau1[[#This Row],[NBR de liv.]],"",Tableau1[[#This Row],[KM SOS]],"",Tableau1[[#This Row],[KM Réel]],"",Tableau1[[#This Row],[Revenus des liv.]],"",Tableau1[[#This Row],[Essence SOS]],"",Tableau1[[#This Row],[Ajustements salariales]],"",Tableau1[[#This Row],[Commentaires]],"",Tableau1[[#This Row],[Année]],"",Tableau1[[#This Row],[mois]]) -> 2025-07-142025juillet
